Effective Date,Department,Supplier Name,Payment Date,Amount **,Purpose of Spend,Merchant Category,Card Transaction 
Statement 18/12/2015 - 18/01/2016,Adults and Communities,Amazon Svcs Europe SAR,04/01/2016,28.53,Books - General,Book Stores,GPC
Statement 18/12/2015 - 18/01/2016,Adults and Communities,Amazon Svcs Europe SAR,04/01/2016,19.80,Books - General,Book Stores,GPC
Statement 18/12/2015 - 18/01/2016,Adults and Communities,Amazon UK Marketplace,31/12/2015,14.78,Books - General,Book Stores,GPC
Statement 18/12/2015 - 18/01/2016,Adults and Communities,Amazon UK Marketplace,08/01/2016,11.29,Books - General,Book Stores,GPC
Statement 18/12/2015 - 18/01/2016,Adults and Communities,Amazon UK Marketplace,08/01/2016,1.99,Books - General,Book Stores,GPC
Statement 18/12/2015 - 18/01/2016,Adults and Communities,Amazon UK Marketplace,11/01/2016,4.15,Books - General,Book Stores,GPC
Statement 18/12/2015 - 18/01/2016,Adults and Communities,Amazon UK Marketplace,11/01/2016,24.75,Books - General,Book Stores,GPC
Statement 18/12/2015 - 18/01/2016,Adults and Communities,Amazon UK Marketplace,14/01/2016,444.99,Books - General,Book Stores,GPC
Statement 18/12/2015 - 18/01/2016,Adults and Communities,Amazon UK Marketplace,06/01/2016,19.97,Display/Conservn/Exhibitions - Displays/Field Research,Miscellaneous and Specialty Retail Stores,GPC
Statement 18/12/2015 - 18/01/2016,Adults and Communities,Amazon UK Marketplace,07/01/2016,2.95,Display/Conservn/Exhibitions - Displays/Field Research,Miscellaneous and Specialty Retail Stores,GPC
Statement 18/12/2015 - 18/01/2016,Adults and Communities,Amazon UK Marketplace,07/01/2016,7.02,Display/Conservn/Exhibitions - Displays/Field Research,Miscellaneous and Specialty Retail Stores,GPC
Statement 18/12/2015 - 18/01/2016,Adults and Communities,Amazon UK Marketplace,07/01/2016,26.73,Display/Conservn/Exhibitions - Displays/Field Research,Miscellaneous and Specialty Retail Stores,GPC
Statement 18/12/2015 - 18/01/2016,Adults and Communities,Amazon UK Marketplace,08/01/2016,29.95,Furniture - General,Book Stores,GPC
Statement 18/12/2015 - 18/01/2016,Adults and Communities,Amazon UK Marketplace,17/12/2015,11.95,General Equipment - General,Miscellaneous and Specialty Retail Stores,GPC
Statement 18/12/2015 - 18/01/2016,Adults and Communities,Amazon UK Marketplace,24/12/2015,12.28,General Equipment - General,Miscellaneous and Specialty Retail Stores,GPC
Statement 18/12/2015 - 18/01/2016,Adults and Communities,Amazon UK Marketplace,26/12/2015,9.98,General Equipment - General,Book Stores,GPC
Statement 18/12/2015 - 18/01/2016,Adults and Communities,Amazon UK Marketplace,28/12/2015,4.26,General Equipment - General,Book Stores,GPC
Statement 18/12/2015 - 18/01/2016,Adults and Communities,Amazon UK Marketplace,28/12/2015,1.64,General Equipment - General,Book Stores,GPC
Statement 18/12/2015 - 18/01/2016,Adults and Communities,Amazon UK Marketplace,05/01/2016,53.33,General Equipment - General,Miscellaneous and Specialty Retail Stores,GPC
Statement 18/12/2015 - 18/01/2016,Adults and Communities,Amazon UK Marketplace,06/01/2016,11.04,General Equipment - General,Book Stores,GPC
Statement 18/12/2015 - 18/01/2016,Adults and Communities,Amazon UK Marketplace,06/01/2016,10.55,General Equipment - General,Miscellaneous and Specialty Retail Stores,GPC
Statement 18/12/2015 - 18/01/2016,Adults and Communities,Amazon UK Marketplace,11/01/2016,13.60,General Equipment - General,Miscellaneous and Specialty Retail Stores,GPC
Statement 18/12/2015 - 18/01/2016,Adults and Communities,Amazon UK Marketplace,18/12/2015,7.22,Materials - General,Miscellaneous and Specialty Retail Stores,GPC
Statement 18/12/2015 - 18/01/2016,Adults and Communities,Amazon UK Marketplace,23/12/2015,71.60,Materials - General,Book Stores,GPC
Statement 18/12/2015 - 18/01/2016,Adults and Communities,Amazon UK Marketplace,28/12/2015,5.55,Materials - General,Miscellaneous and Specialty Retail Stores,GPC
Statement 18/12/2015 - 18/01/2016,Adults and Communities,Amazon UK Marketplace,04/01/2016,8.16,Materials - General,Miscellaneous and Specialty Retail Stores,GPC
Statement 18/12/2015 - 18/01/2016,Adults and Communities,Amazon UK Marketplace,06/01/2016,6.98,Materials - General,Miscellaneous and Specialty Retail Stores,GPC
Statement 18/12/2015 - 18/01/2016,Adults and Communities,Amazon UK Marketplace,08/01/2016,174.06,Materials - General,Miscellaneous and Specialty Retail Stores,GPC
Statement 18/12/2015 - 18/01/2016,Adults and Communities,Amazon UK Marketplace,11/01/2016,9.49,Materials - General,Miscellaneous and Specialty Retail Stores,GPC
Statement 18/12/2015 - 18/01/2016,Adults and Communities,Amazon UK Marketplace,12/01/2016,6.00,Other Services - General,Miscellaneous and Specialty Retail Stores,GPC
Statement 18/12/2015 - 18/01/2016,Adults and Communities,Amazon UK Marketplace,14/01/2016,5.98,Other Services - General,Miscellaneous and Specialty Retail Stores,GPC
Statement 18/12/2015 - 18/01/2016,Adults and Communities,Amazon UK Marketplace,17/12/2015,7.99,Postal Services - General,Miscellaneous and Specialty Retail Stores,GPC
Statement 18/12/2015 - 18/01/2016,Adults and Communities,Amazon UK Marketplace,28/12/2015,8.97,Postal Services - General,Book Stores,GPC
Statement 18/12/2015 - 18/01/2016,Adults and Communities,Amazon UK Marketplace,28/12/2015,10.99,Postal Services - General,Book Stores,GPC
Statement 18/12/2015 - 18/01/2016,Adults and Communities,Amazon UK Marketplace,11/01/2016,3.00,Postal Services - General,Miscellaneous and Specialty Retail Stores,GPC
Statement 18/12/2015 - 18/01/2016,Adults and Communities,Amazon UK Marketplace,02/01/2016,14.95,Stationery - General,Book Stores,GPC
Statement 18/12/2015 - 18/01/2016,Adults and Communities,Amazon UK Marketplace,05/01/2016,39.60,Stationery - General,Miscellaneous and Specialty Retail Stores,GPC
Statement 18/12/2015 - 18/01/2016,Adults and Communities,Amazon UK Marketplace,14/01/2016,15.66,Stationery - General,Book Stores,GPC
Statement 18/12/2015 - 18/01/2016,Adults and Communities,Amazon UK Retail,05/01/2016,55.20,Aids & Adaptations - Minor Adaptations,Direct Marketers - Other,GPC
Statement 18/12/2015 - 18/01/2016,Adults and Communities,Amazon UK Retail,26/12/2015,10.83,General Equipment - General,Direct Marketers - Other,GPC
Statement 18/12/2015 - 18/01/2016,Adults and Communities,Amazon UK Retail,10/01/2016,8.33,Materials - General,Direct Marketers - Other,GPC
Statement 18/12/2015 - 18/01/2016,Adults and Communities,Amazon UK Retail,12/01/2016,-1.00,Materials - General,Direct Marketers - Other,GPC
Statement 18/12/2015 - 18/01/2016,Adults and Communities,Amazon UK Retail,18/12/2015,3.85,Other Expenditure - General,Direct Marketers - Other,GPC
Statement 18/12/2015 - 18/01/2016,Adults and Communities,Amazon UK Retail,26/12/2015,17.17,Other Expenditure - General,Direct Marketers - Other,GPC
Statement 18/12/2015 - 18/01/2016,Adults and Communities,Amazon UK Retail,30/12/2015,13.48,Other Expenditure - General,Direct Marketers - Other,GPC
Statement 18/12/2015 - 18/01/2016,Adults and Communities,Amazon UK Retail,30/12/2015,25.90,Other Expenditure - General,Direct Marketers - Other,GPC
Statement 18/12/2015 - 18/01/2016,Adults and Communities,Amazon UK Retail,06/01/2016,21.33,Other Expenditure - General,Direct Marketers - Other,GPC
Statement 18/12/2015 - 18/01/2016,Adults and Communities,Amazon UK Retail,08/01/2016,23.82,Other Expenditure - General,Direct Marketers - Other,GPC
Statement 18/12/2015 - 18/01/2016,Adults and Communities,Amazon UK Retail,10/01/2016,69.48,Other Expenditure - General,Direct Marketers - Other,GPC
Statement 18/12/2015 - 18/01/2016,Adults and Communities,Amazon UK Retail,11/01/2016,10.67,Other Expenditure - General,Direct Marketers - Other,GPC
Statement 18/12/2015 - 18/01/2016,Adults and Communities,Amazon UK Retail,12/01/2016,13.79,Other Expenditure - General,Direct Marketers - Other,GPC
Statement 18/12/2015 - 18/01/2016,Adults and Communities,Amazon UK Retail,12/01/2016,7.49,Other Services - General,Direct Marketers - Other,GPC
Statement 18/12/2015 - 18/01/2016,Adults and Communities,Amazon UK Retail,12/01/2016,8.52,Other Services - General,Direct Marketers - Other,GPC
Statement 18/12/2015 - 18/01/2016,Adults and Communities,Amazon UK Retail,16/01/2016,27.99,Protective Clothing & Uniforms - General,Direct Marketers - Other,GPC
Statement 18/12/2015 - 18/01/2016,Adults and Communities,Amazon UK Retail,03/01/2016,3.50,Stationery - General,Direct Marketers - Other,GPC
Statement 18/12/2015 - 18/01/2016,Adults and Communities,Amazon UK Retail,03/01/2016,10.96,Stationery - General,Direct Marketers - Other,GPC
Statement 18/12/2015 - 18/01/2016,Adults and Communities,Amazon UK Retail,04/01/2016,5.49,Stationery - General,Direct Marketers - Other,GPC
Statement 18/12/2015 - 18/01/2016,Adults and Communities,Amazon UK Retail,14/01/2016,18.74,Stationery - General,Direct Marketers - Other,GPC
Statement 18/12/2015 - 18/01/2016,Adults and Communities,Amazon UK Retail,17/01/2016,14.56,Stationery - General,Direct Marketers - Other,GPC
Statement 18/12/2015 - 18/01/2016,Adults and Communities,ARGOS RETAIL GROUP,22/12/2015,236.61,General Equipment - General,Discount Stores,GPC
Statement 18/12/2015 - 18/01/2016,Adults and Communities,ARGOS RETAIL GROUP,22/12/2015,19.94,General Equipment - General,Discount Stores,GPC
Statement 18/12/2015 - 18/01/2016,Adults and Communities,ARGOS RETAIL GROUP,08/01/2016,24.99,General Equipment - General,Discount Stores,GPC
Statement 18/12/2015 - 18/01/2016,Adults and Communities,ARGOS RETAIL GROUP,19/12/2015,94.98,Materials - General,Discount Stores,GPC
Statement 18/12/2015 - 18/01/2016,Adults and Communities,ARGOS RETAIL GROUP,31/12/2015,83.94,Materials - General,Discount Stores,GPC
Statement 18/12/2015 - 18/01/2016,Adults and Communities,ASDA SUPERSTORE,30/12/2015,8.40,Provisions - General,"Grocery Stores, Supermarkets",GPC
Statement 18/12/2015 - 18/01/2016,Adults and Communities,ASDA SUPERSTORE,31/12/2015,92.92,Provisions - General,"Grocery Stores, Supermarkets",GPC
Statement 18/12/2015 - 18/01/2016,Adults and Communities,AXMINSTER TOOL CEN,06/01/2016,6.05,General Equipment - General,"Building Materials, Lumber Stores",GPC
Statement 18/12/2015 - 18/01/2016,Adults and Communities,B & Q,05/01/2016,14.38,Aids & Adaptations - Minor Adaptations,"Building Materials, Lumber Stores",GPC
Statement 18/12/2015 - 18/01/2016,Adults and Communities,B & Q,23/12/2015,8.34,Other Services - General,"Building Materials, Lumber Stores",GPC
Statement 18/12/2015 - 18/01/2016,Adults and Communities,B & Q,07/01/2016,15.00,Other Services - General,"Building Materials, Lumber Stores",GPC
Statement 18/12/2015 - 18/01/2016,Adults and Communities,B&Q,07/01/2016,67.80,Aids & Adaptations - Minor Adaptations,"Building Materials, Lumber Stores",GPC
Statement 18/12/2015 - 18/01/2016,Adults and Communities,B&Q,15/01/2016,33.43,Aids & Adaptations - Minor Adaptations,"Building Materials, Lumber Stores",GPC
Statement 18/12/2015 - 18/01/2016,Adults and Communities,BC.BASECAMP 2997305,01/01/2016,13.51,Stationery - General,Membership Organizations-Not Elsewhere Classified,GPC
Statement 18/12/2015 - 18/01/2016,Adults and Communities,BOC TEL ORDER,13/01/2016,6.76,General Equipment - General,Chemicals and Allied Products Not Elsewhere Classi,GPC
Statement 18/12/2015 - 18/01/2016,Adults and Communities,CAFFE NERO,14/01/2016,3.60,Subsistence - General,"Eating Places, Restaurants",GPC
Statement 18/12/2015 - 18/01/2016,Adults and Communities,CENTRAL ENG COOP,17/12/2015,38.85,Materials - General,Department Stores,GPC
Statement 18/12/2015 - 18/01/2016,Adults and Communities,CENTRAL ENG COOP,17/12/2015,6.00,Materials - General,Department Stores,GPC
Statement 18/12/2015 - 18/01/2016,Adults and Communities,CENTRAL ENG COOP,22/12/2015,127.74,Materials - General,Department Stores,GPC
Statement 18/12/2015 - 18/01/2016,Adults and Communities,CENTRAL ENG COOP,23/12/2015,37.42,Materials - General,Department Stores,GPC
Statement 18/12/2015 - 18/01/2016,Adults and Communities,CENTRAL ENG COOP,30/12/2015,98.26,Materials - General,Department Stores,GPC
Statement 18/12/2015 - 18/01/2016,Adults and Communities,CENTRAL ENG COOP,09/01/2016,12.79,Materials - General,Department Stores,GPC
Statement 18/12/2015 - 18/01/2016,Adults and Communities,CENTRAL ENG COOP,11/01/2016,15.01,Materials - General,Department Stores,GPC
Statement 18/12/2015 - 18/01/2016,Adults and Communities,CENTRAL ENG COOP,11/01/2016,39.63,Materials - General,Department Stores,GPC
Statement 18/12/2015 - 18/01/2016,Adults and Communities,CENTRAL ENG COOP,13/01/2016,41.48,Materials - General,Department Stores,GPC
Statement 18/12/2015 - 18/01/2016,Adults and Communities,CENTRAL ENG COOP,15/01/2016,170.29,Materials - General,Department Stores,GPC
Statement 18/12/2015 - 18/01/2016,Adults and Communities,CHARNWOOD ARMS,29/12/2015,25.08,Subsistence - General,"Drinking Places (Alcoholic Beverages)-Bars, Tavern",GPC
Statement 18/12/2015 - 18/01/2016,Adults and Communities,CHARNWOOD ARMS,09/01/2016,37.59,Subsistence - General,"Drinking Places (Alcoholic Beverages)-Bars, Tavern",GPC
Statement 18/12/2015 - 18/01/2016,Adults and Communities,CHARNWOOD BOROUGH COUNCI,24/12/2015,6.00,Casual/Essential - General,Automobile Parking Lots and Garages,GPC
Statement 18/12/2015 - 18/01/2016,Adults and Communities,CHARNWOOD BOROUGH COUNCI,14/01/2016,2.20,Other Equipment & Materials - General,Automobile Parking Lots and Garages,GPC
Statement 18/12/2015 - 18/01/2016,Adults and Communities,COMPLETE CARE,15/01/2016,18.17,Materials - General,Variety Stores,GPC
Statement 18/12/2015 - 18/01/2016,Adults and Communities,COSTA COFFEE,14/01/2016,3.70,Subsistence - General,Fast-Food Restaurants (Quick Payment Service Pilot,GPC
Statement 18/12/2015 - 18/01/2016,Adults and Communities,DUNELM ONLINE ORDER,13/01/2016,61.61,Furniture - General,"Drapery, Window Coverings, and Upholstery Stores",GPC
Statement 18/12/2015 - 18/01/2016,Adults and Communities,EB MUSEUM RETAIL MATT,17/12/2015,37.18,Other Expenditure - General,Business Services-Not Elsewhere Classified,GPC
Statement 18/12/2015 - 18/01/2016,Adults and Communities,EB SELECTION DE-SELEC,05/01/2016,10.00,Display/Conservn/Exhibitions - Displays/Field Research,Business Services-Not Elsewhere Classified,GPC
Statement 18/12/2015 - 18/01/2016,Adults and Communities,ESPO,17/12/2015,13.90,Stationery - General,Government Services-Not Elsewhere Classified,GPC
Statement 18/12/2015 - 18/01/2016,Adults and Communities,ESPO,07/01/2016,2.25,Stationery - General,Government Services-Not Elsewhere Classified,GPC
Statement 18/12/2015 - 18/01/2016,Adults and Communities,FAST KEY SERVICES,21/12/2015,14.22,Other Equipment & Materials - General,Business Services-Not Elsewhere Classified,GPC
Statement 18/12/2015 - 18/01/2016,Adults and Communities,FAST KEY SERVICES,12/01/2016,52.91,Other Equipment & Materials - General,Business Services-Not Elsewhere Classified,GPC
Statement 18/12/2015 - 18/01/2016,Adults and Communities,FOREIGN EXCHANGE FEE,04/01/2016,0.37,Stationery - General,Misc-Unknown,GPC
Statement 18/12/2015 - 18/01/2016,Adults and Communities,FRANK PARKER,23/12/2015,62.00,Provisions - General,"Freezer, Locker Meat Provisioners",GPC
Statement 18/12/2015 - 18/01/2016,Adults and Communities,GREGGS - S0963,22/12/2015,6.55,Provisions - General,Bakeries,GPC
Statement 18/12/2015 - 18/01/2016,Adults and Communities,HEREFORD MAP CENTRE,14/01/2016,27.99,Stationery - General,"Stationary, Office Supplies, Printing and Writing",GPC
Statement 18/12/2015 - 18/01/2016,Adults and Communities,HMCOURTS-SERVICE.G,06/01/2016,15.00,Other Expenditure - General,Fines,GPC
Statement 18/12/2015 - 18/01/2016,Adults and Communities,ICELAND,30/12/2015,41.00,Materials - General,"Grocery Stores, Supermarkets",GPC
Statement 18/12/2015 - 18/01/2016,Adults and Communities,ICELAND,02/01/2016,12.10,Materials - General,"Grocery Stores, Supermarkets",GPC
Statement 18/12/2015 - 18/01/2016,Adults and Communities,ICELAND,31/12/2015,2.00,Operational Equipment - General,"Grocery Stores, Supermarkets",GPC
Statement 18/12/2015 - 18/01/2016,Adults and Communities,IKEA,30/12/2015,200.42,General Equipment - General,Miscellaneous House Furnishing Specialty Shops,GPC
Statement 18/12/2015 - 18/01/2016,Adults and Communities,INDIGO UK,13/01/2016,6.20,Casual/Essential - General,Automobile Parking Lots and Garages,GPC
Statement 18/12/2015 - 18/01/2016,Adults and Communities,LEIC CITY COUNCIL,22/12/2015,13.00,Other Expenditure - General,Government Services-Not Elsewhere Classified,GPC
Statement 18/12/2015 - 18/01/2016,Adults and Communities,LEIC CITY COUNCIL,23/12/2015,13.00,Other Expenditure - General,Government Services-Not Elsewhere Classified,GPC
Statement 18/12/2015 - 18/01/2016,Adults and Communities,LEIC CITY COUNCIL,24/12/2015,-10.00,Other Expenditure - General,Government Services-Not Elsewhere Classified,GPC
Statement 18/12/2015 - 18/01/2016,Adults and Communities,LEIC CITY COUNCIL,11/01/2016,13.00,Other Expenditure - General,Government Services-Not Elsewhere Classified,GPC
Statement 18/12/2015 - 18/01/2016,Adults and Communities,LIDL UK,22/12/2015,5.16,Materials - General,"Grocery Stores, Supermarkets",GPC
Statement 18/12/2015 - 18/01/2016,Adults and Communities,LW ADV SALE(SENTINEL1),12/01/2016,182.40,Other Transfer Payments - General,"Books, Periodicals, and Newspapers",GPC
Statement 18/12/2015 - 18/01/2016,Adults and Communities,LW ADV SALE(SENTINEL1),12/01/2016,182.40,Other Transfer Payments - General,"Books, Periodicals, and Newspapers",GPC
Statement 18/12/2015 - 18/01/2016,Adults and Communities,LW ADV SALE(SENTINEL1),12/01/2016,182.40,Other Transfer Payments - General,"Books, Periodicals, and Newspapers",GPC
Statement 18/12/2015 - 18/01/2016,Adults and Communities,LYNROYS LTD,17/12/2015,50.00,Subsistence - General,Fast-Food Restaurants (Quick Payment Service Pilot,GPC
Statement 18/12/2015 - 18/01/2016,Adults and Communities,MAPLIN--LEICESTER LE1,04/01/2016,9.99,Materials - General,"RADIO, TELEVISION, AND STEREO STORES (ELECTRONIC STORES)",GPC
Statement 18/12/2015 - 18/01/2016,Adults and Communities,MASONS CHEMISTS,05/01/2016,15.90,Other Equipment & Materials - General,"Drug Stores, Pharmacies",GPC
Statement 18/12/2015 - 18/01/2016,Adults and Communities,MCDONALDS,29/12/2015,11.76,Subsistence - General,"Eating Places, Restaurants",GPC
Statement 18/12/2015 - 18/01/2016,Adults and Communities,OCADO RETAIL LIMIT,17/12/2015,54.95,Provisions - General,"Miscellaneous Food Stores-Convenience Stores, Mark",GPC
Statement 18/12/2015 - 18/01/2016,Adults and Communities,OCADO RETAIL LIMIT,19/12/2015,109.85,Provisions - General,"Miscellaneous Food Stores-Convenience Stores, Mark",GPC
Statement 18/12/2015 - 18/01/2016,Adults and Communities,OCADO RETAIL LIMIT,21/12/2015,228.51,Provisions - General,"Miscellaneous Food Stores-Convenience Stores, Mark",GPC
Statement 18/12/2015 - 18/01/2016,Adults and Communities,OCADO RETAIL LIMIT,07/01/2016,58.81,Provisions - General,"Miscellaneous Food Stores-Convenience Stores, Mark",GPC
Statement 18/12/2015 - 18/01/2016,Adults and Communities,OCADO RETAIL LIMIT,11/01/2016,85.00,Provisions - General,"Miscellaneous Food Stores-Convenience Stores, Mark",GPC
Statement 18/12/2015 - 18/01/2016,Adults and Communities,OCADO RETAIL LIMIT,16/01/2016,68.48,Provisions - General,"Miscellaneous Food Stores-Convenience Stores, Mark",GPC
Statement 18/12/2015 - 18/01/2016,Adults and Communities,PAYPAL  DRESSTEXTIL,06/01/2016,35.00,Public Transport -  Staff - General,"Civic, Social, and Fraternal Associations",GPC
Statement 18/12/2015 - 18/01/2016,Adults and Communities,POST OFFICE COUNTER,23/12/2015,63.00,Postal Services - General,Postage Stamps,GPC
Statement 18/12/2015 - 18/01/2016,Adults and Communities,POST OFFICE COUNTER,08/01/2016,3.90,Postal Services - General,Postage Stamps,GPC
Statement 18/12/2015 - 18/01/2016,Adults and Communities,POST OFFICE COUNTER,13/01/2016,61.56,Postal Services - General,Postage Stamps,GPC
Statement 18/12/2015 - 18/01/2016,Adults and Communities,POUNDSTRETCHER 292,31/12/2015,18.00,Materials - General,"Drapery, Window Coverings, and Upholstery Stores",GPC
Statement 18/12/2015 - 18/01/2016,Adults and Communities,RYMAN,05/01/2016,9.98,Stationery - General,"Stationery, Office, and School Supply Stores",GPC
Statement 18/12/2015 - 18/01/2016,Adults and Communities,RYMAN,06/01/2016,15.00,Stationery - General,"Stationery, Office, and School Supply Stores",GPC
Statement 18/12/2015 - 18/01/2016,Adults and Communities,RYMAN,13/01/2016,44.94,Stationery - General,"Stationery, Office, and School Supply Stores",GPC
Statement 18/12/2015 - 18/01/2016,Adults and Communities,SAINSBURYS LOCAL,02/01/2016,32.90,Provisions - General,"Grocery Stores, Supermarkets",GPC
Statement 18/12/2015 - 18/01/2016,Adults and Communities,SAINSBURYS LOCAL,14/01/2016,3.00,Provisions - General,"Grocery Stores, Supermarkets",GPC
Statement 18/12/2015 - 18/01/2016,Adults and Communities,SAINSBURYS S/MKTS,18/12/2015,91.64,Materials - General,"Grocery Stores, Supermarkets",GPC
Statement 18/12/2015 - 18/01/2016,Adults and Communities,SAINSBURYS S/MKTS,21/12/2015,129.62,Materials - General,"Grocery Stores, Supermarkets",GPC
Statement 18/12/2015 - 18/01/2016,Adults and Communities,SAINSBURYS S/MKTS,23/12/2015,48.88,Materials - General,"Grocery Stores, Supermarkets",GPC
Statement 18/12/2015 - 18/01/2016,Adults and Communities,SAINSBURYS S/MKTS,23/12/2015,110.28,Materials - General,"Grocery Stores, Supermarkets",GPC
Statement 18/12/2015 - 18/01/2016,Adults and Communities,SAINSBURYS S/MKTS,28/12/2015,132.20,Materials - General,"Grocery Stores, Supermarkets",GPC
Statement 18/12/2015 - 18/01/2016,Adults and Communities,SAINSBURYS S/MKTS,30/12/2015,81.93,Materials - General,"Grocery Stores, Supermarkets",GPC
Statement 18/12/2015 - 18/01/2016,Adults and Communities,SAINSBURYS S/MKTS,30/12/2015,165.70,Materials - General,"Grocery Stores, Supermarkets",GPC
Statement 18/12/2015 - 18/01/2016,Adults and Communities,SAINSBURYS S/MKTS,30/12/2015,205.75,Materials - General,"Grocery Stores, Supermarkets",GPC
Statement 18/12/2015 - 18/01/2016,Adults and Communities,SAINSBURYS S/MKTS,02/01/2016,77.25,Materials - General,"Grocery Stores, Supermarkets",GPC
Statement 18/12/2015 - 18/01/2016,Adults and Communities,SAINSBURYS S/MKTS,02/01/2016,47.32,Materials - General,"Grocery Stores, Supermarkets",GPC
Statement 18/12/2015 - 18/01/2016,Adults and Communities,Sainsburys S/mkts,11/01/2016,2.50,Materials - General,"Grocery Stores, Supermarkets",GPC
Statement 18/12/2015 - 18/01/2016,Adults and Communities,Sainsburys S/mkts,12/01/2016,15.12,Materials - General,"Grocery Stores, Supermarkets",GPC
Statement 18/12/2015 - 18/01/2016,Adults and Communities,Sainsburys S/mkts,13/01/2016,8.66,Materials - General,"Grocery Stores, Supermarkets",GPC
Statement 18/12/2015 - 18/01/2016,Adults and Communities,SAINSBURYS S/MKTS,31/12/2015,4.60,Operational Equipment - General,"Grocery Stores, Supermarkets",GPC
Statement 18/12/2015 - 18/01/2016,Adults and Communities,SCREWFIX,05/01/2016,44.85,Aids & Adaptations - Minor Adaptations,"Building Materials, Lumber Stores",GPC
Statement 18/12/2015 - 18/01/2016,Adults and Communities,SCREWFIX,06/01/2016,15.54,Aids & Adaptations - Minor Adaptations,"Building Materials, Lumber Stores",GPC
Statement 18/12/2015 - 18/01/2016,Adults and Communities,SCREWFIX DIRECT,17/12/2015,40.36,Aids & Adaptations - Minor Adaptations,"Building Materials, Lumber Stores",GPC
Statement 18/12/2015 - 18/01/2016,Adults and Communities,SHADEWELL BLINDS,06/01/2016,78.00,Furniture - General,"Furniture, Home Furnishings and Equipment Stores,",GPC
Statement 18/12/2015 - 18/01/2016,Adults and Communities,SNAPFISH UK,05/01/2016,5.98,Printing - General,"Photofinishing Laboratories, Photo Developing",GPC
Statement 18/12/2015 - 18/01/2016,Adults and Communities,SPARES SUPPLY COMPANY,12/01/2016,8.33,Other Services - General,Electrical Parts and Equipment,GPC
Statement 18/12/2015 - 18/01/2016,Adults and Communities,STAFFORDSHIRE COUNTY C,29/12/2015,10.00,Other Expenditure - General,Government Services-Not Elsewhere Classified,GPC
Statement 18/12/2015 - 18/01/2016,Adults and Communities,STAPLES UK,04/01/2016,24.18,Stationery - General,"Stationery, Office, and School Supply Stores",GPC
Statement 18/12/2015 - 18/01/2016,Adults and Communities,SUPERDRUG STORES PLC,15/01/2016,7.56,Postal Services - General,"Drug Stores, Pharmacies",GPC
Statement 18/12/2015 - 18/01/2016,Adults and Communities,SURVEYMONKEY.COM,12/01/2016,21.67,Publicity/Marketing - General,Computer Network/Information Services,GPC
Statement 18/12/2015 - 18/01/2016,Adults and Communities,TALKTALK BUSINESS,05/01/2016,46.57,Telephones - General,Telecommunication Service Including Local and Long,GPC
Statement 18/12/2015 - 18/01/2016,Adults and Communities,TESCO STORE 2849,07/01/2016,33.10,Materials - General,"Grocery Stores, Supermarkets",GPC
Statement 18/12/2015 - 18/01/2016,Adults and Communities,TESCO STORES 2044,15/01/2016,9.00,Materials - General,"Grocery Stores, Supermarkets",GPC
Statement 18/12/2015 - 18/01/2016,Adults and Communities,TESCO STORES 5182,15/01/2016,76.10,Materials - General,"Grocery Stores, Supermarkets",GPC
Statement 18/12/2015 - 18/01/2016,Adults and Communities,TESCO STORES 5182,15/01/2016,4.00,Materials - General,"Grocery Stores, Supermarkets",GPC
Statement 18/12/2015 - 18/01/2016,Adults and Communities,TESCO STORES 5182,18/12/2015,72.53,Provisions - General,"Grocery Stores, Supermarkets",GPC
Statement 18/12/2015 - 18/01/2016,Adults and Communities,TESCO STORES 5182,21/12/2015,121.42,Provisions - General,"Grocery Stores, Supermarkets",GPC
Statement 18/12/2015 - 18/01/2016,Adults and Communities,TESCO STORES 5182,23/12/2015,57.51,Provisions - General,"Grocery Stores, Supermarkets",GPC
Statement 18/12/2015 - 18/01/2016,Adults and Communities,TESCO STORES 5182,28/12/2015,50.31,Provisions - General,"Grocery Stores, Supermarkets",GPC
Statement 18/12/2015 - 18/01/2016,Adults and Communities,TESCO STORES 5182,04/01/2016,170.32,Provisions - General,"Grocery Stores, Supermarkets",GPC
Statement 18/12/2015 - 18/01/2016,Adults and Communities,TESCO STORES 5182,08/01/2016,85.66,Provisions - General,"Grocery Stores, Supermarkets",GPC
Statement 18/12/2015 - 18/01/2016,Adults and Communities,TESCO STORES 5182,11/01/2016,108.20,Provisions - General,"Grocery Stores, Supermarkets",GPC
Statement 18/12/2015 - 18/01/2016,Adults and Communities,TESCO STORES 5902,22/12/2015,37.14,Provisions - General,"Grocery Stores, Supermarkets",GPC
Statement 18/12/2015 - 18/01/2016,Adults and Communities,TL&GN RAILWAY WEB,06/01/2016,59.40,Casual/Essential - General,Passenger Railways,GPC
Statement 18/12/2015 - 18/01/2016,Adults and Communities,TOM TOON AND DAUGHERS,13/01/2016,130.00,Other Equipment & Materials - General,"Equipment Rental and Leasing Services, Tool Rental",GPC
Statement 18/12/2015 - 18/01/2016,Adults and Communities,TRAINLINE,05/01/2016,273.05,Casual/Essential - General,Passenger Railways,GPC
Statement 18/12/2015 - 18/01/2016,Adults and Communities,TRAINLINE,12/01/2016,73.54,Casual/Essential - General,Passenger Railways,GPC
Statement 18/12/2015 - 18/01/2016,Adults and Communities,TRAINLINE,08/01/2016,119.85,Other Equipment & Materials - General,Passenger Railways,GPC
Statement 18/12/2015 - 18/01/2016,Adults and Communities,TRAINLINE,08/01/2016,63.75,Public Transport -  Staff - General,Passenger Railways,GPC
Statement 18/12/2015 - 18/01/2016,Adults and Communities,VIVANTAGE,08/01/2016,64.30,Materials - General,Miscellaneous and Specialty Retail Stores,GPC
Statement 18/12/2015 - 18/01/2016,Adults and Communities,WH SMITH,13/01/2016,10.99,Newspapers & Periodicals - General,News Dealers and Newsstands,GPC
Statement 18/12/2015 - 18/01/2016,Adults and Communities,WICKES HINCKLEY,15/01/2016,32.94,General Equipment - General,"Building Materials, Lumber Stores",GPC
Statement 18/12/2015 - 18/01/2016,Adults and Communities,WILKO RETAIL LIMIT,13/01/2016,9.50,General Equipment - General,Household Appliance Stores,GPC
Statement 18/12/2015 - 18/01/2016,Adults and Communities,WILKO RETAIL LIMIT,04/01/2016,35.49,Materials - General,Household Appliance Stores,GPC
Statement 18/12/2015 - 18/01/2016,Adults and Communities,WILKO RETAIL LIMIT,14/01/2016,36.00,Materials - General,Household Appliance Stores,GPC
Statement 18/12/2015 - 18/01/2016,Adults and Communities,WILKO RETAIL LIMIT,15/01/2016,14.00,Materials - General,Household Appliance Stores,GPC
Statement 18/12/2015 - 18/01/2016,Adults and Communities,WM MORRISON 054,19/12/2015,149.77,Materials - General,"Grocery Stores, Supermarkets",GPC
Statement 18/12/2015 - 18/01/2016,Adults and Communities,WM MORRISON 054,21/12/2015,61.92,Materials - General,"Grocery Stores, Supermarkets",GPC
Statement 18/12/2015 - 18/01/2016,Adults and Communities,WM MORRISON 054,31/12/2015,4.25,Materials - General,"Grocery Stores, Supermarkets",GPC
Statement 18/12/2015 - 18/01/2016,Adults and Communities,WM MORRISON 054,31/12/2015,134.60,Materials - General,"Grocery Stores, Supermarkets",GPC
Statement 18/12/2015 - 18/01/2016,Adults and Communities,WM MORRISON 054,08/01/2016,128.54,Materials - General,"Grocery Stores, Supermarkets",GPC
Statement 18/12/2015 - 18/01/2016,Adults and Communities,WM MORRISON 054,16/01/2016,97.68,Materials - General,"Grocery Stores, Supermarkets",GPC
Statement 18/12/2015 - 18/01/2016,Adults and Communities,WM MORRISONS,17/12/2015,40.00,Provisions - General,"Grocery Stores, Supermarkets",GPC
Statement 18/12/2015 - 18/01/2016,Adults and Communities,WM MORRISONS,23/12/2015,40.62,Provisions - General,"Grocery Stores, Supermarkets",GPC
Statement 18/12/2015 - 18/01/2016,Adults and Communities,WM MORRISONS,13/01/2016,12.00,Provisions - General,"Grocery Stores, Supermarkets",GPC
Statement 18/12/2015 - 18/01/2016,Adults and Communities,WM MORRISONS DRY C,17/12/2015,71.83,General Equipment - General,"Grocery Stores, Supermarkets",GPC
Statement 18/12/2015 - 18/01/2016,Adults and Communities,WP-MICROTECH LIMIT,04/01/2016,24.76,IT Equipment - General,Computer and Data Processing Services,GPC
Statement 18/12/2015 - 18/01/2016,Adults and Communities,WWW.ANNARBOR.CO.UK,12/01/2016,176.80,Materials - General,Catalog Merchants,GPC
Statement 18/12/2015 - 18/01/2016,Adults and Communities,WWW.GOV.UK,15/01/2016,10.00,Schools Agency staff - Teaching Staff,Professional Services-Not Elsewhere Classified,GPC
Statement 18/12/2015 - 18/01/2016,Adults and Communities,WWW.GOV.UK,15/01/2016,10.00,Schools Agency staff - Teaching Staff,Professional Services-Not Elsewhere Classified,GPC
Statement 18/12/2015 - 18/01/2016,Adults and Communities,WWW.HANDSET-SOLUTIONS.CO,24/12/2015,238.79,Communications Equipment - General,Telecommunication Equipment Including Telephone Sa,GPC
Statement 18/12/2015 - 18/01/2016,Adults and Communities,WWW.MAPLIN.CO.UK,13/01/2016,49.99,Materials - General,"RADIO, TELEVISION, AND STEREO STORES (ELECTRONIC STORES)",GPC
Statement 18/12/2015 - 18/01/2016,Adults and Communities,WWW.SCOTPLANTSDIRECT.C,17/12/2015,23.89,Other Services - General,"Lawn and Garden Supply Stores, Nurseries",GPC
Statement 18/12/2015 - 18/01/2016,Adults and Communities,WWW.SUNFLOWERMEDICAL.C,15/01/2016,415.80,Furniture - General,Laboratory/Medical/Dental/Ophthalmic Hospital Equi,GPC
Statement 18/12/2015 - 18/01/2016,Adults and Communities,WWW.THEHIGHWAYMAN.CO.U,17/12/2015,25.00,Other Services - General,Sporting Goods Stores,GPC
Statement 18/12/2015 - 18/01/2016,Adults and Communities,WWW.THEPLASMACENTRE.CO,22/12/2015,133.30,General Equipment - General,Business Services-Not Elsewhere Classified,GPC
Statement 18/12/2015 - 18/01/2016,Adults and Communities,WWW.ZEN.CO.UK,05/01/2016,34.76,Telephones - General,Computer Network/Information Services,GPC
Statement 18/12/2015 - 18/01/2016,C&YPS-Non Delegated,99P STORES LTD,17/12/2015,9.90,Other Equipment & Materials - General,"Grocery Stores, Supermarkets",GPC
Statement 18/12/2015 - 18/01/2016,C&YPS-Non Delegated,ADT LOUGHTON CC,15/01/2016,506.94,Schools Agency staff - Teaching Staff,"Detective Agencies, Protective Agencies, Security",GPC
Statement 18/12/2015 - 18/01/2016,C&YPS-Non Delegated,AIRPORT PARKING,31/12/2015,47.78,Public Transport -  Staff - General,Automobile Parking Lots and Garages,GPC
Statement 18/12/2015 - 18/01/2016,C&YPS-Non Delegated,ALDI,17/12/2015,33.12,Other Equipment & Materials - General,"Grocery Stores, Supermarkets",GPC
Statement 18/12/2015 - 18/01/2016,C&YPS-Non Delegated,ALDI,23/12/2015,43.31,Provisions - General,"Grocery Stores, Supermarkets",GPC
Statement 18/12/2015 - 18/01/2016,C&YPS-Non Delegated,ALDI,11/01/2016,78.56,Provisions - General,"Grocery Stores, Supermarkets",GPC
Statement 18/12/2015 - 18/01/2016,C&YPS-Non Delegated,Amazon Svcs Europe SAR,20/12/2015,27.66,Other Transfer Payments - Birthday & Christmas Presents,Book Stores,GPC
Statement 18/12/2015 - 18/01/2016,C&YPS-Non Delegated,Amazon UK Marketplace,30/12/2015,11.68,Books - General,Book Stores,GPC
Statement 18/12/2015 - 18/01/2016,C&YPS-Non Delegated,Amazon UK Marketplace,03/01/2016,17.99,Books - General,Book Stores,GPC
Statement 18/12/2015 - 18/01/2016,C&YPS-Non Delegated,Amazon UK Marketplace,07/01/2016,10.79,Books - General,Miscellaneous and Specialty Retail Stores,GPC
Statement 18/12/2015 - 18/01/2016,C&YPS-Non Delegated,Amazon UK Marketplace,31/12/2015,25.30,General Equipment - General,Book Stores,GPC
Statement 18/12/2015 - 18/01/2016,C&YPS-Non Delegated,Amazon UK Marketplace,02/01/2016,28.40,General Equipment - General,Book Stores,GPC
Statement 18/12/2015 - 18/01/2016,C&YPS-Non Delegated,Amazon UK Marketplace,02/01/2016,203.59,General Equipment - General,Book Stores,GPC
Statement 18/12/2015 - 18/01/2016,C&YPS-Non Delegated,Amazon UK Marketplace,04/01/2016,50.15,IT Equipment - General,Miscellaneous and Specialty Retail Stores,GPC
Statement 18/12/2015 - 18/01/2016,C&YPS-Non Delegated,Amazon UK Marketplace,30/12/2015,25.98,Materials - General,Miscellaneous and Specialty Retail Stores,GPC
Statement 18/12/2015 - 18/01/2016,C&YPS-Non Delegated,Amazon UK Marketplace,02/01/2016,10.06,Materials - General,Miscellaneous and Specialty Retail Stores,GPC
Statement 18/12/2015 - 18/01/2016,C&YPS-Non Delegated,Amazon UK Marketplace,03/01/2016,25.56,Materials - General,Miscellaneous and Specialty Retail Stores,GPC
Statement 18/12/2015 - 18/01/2016,C&YPS-Non Delegated,Amazon UK Marketplace,03/01/2016,104.86,Materials - General,Miscellaneous and Specialty Retail Stores,GPC
Statement 18/12/2015 - 18/01/2016,C&YPS-Non Delegated,Amazon UK Marketplace,05/01/2016,102.78,Materials - General,Miscellaneous and Specialty Retail Stores,GPC
Statement 18/12/2015 - 18/01/2016,C&YPS-Non Delegated,Amazon UK Marketplace,17/12/2015,39.57,Other Equipment & Materials - General,Book Stores,GPC
Statement 18/12/2015 - 18/01/2016,C&YPS-Non Delegated,Amazon UK Marketplace,17/12/2015,47.80,Other Equipment & Materials - General,Book Stores,GPC
Statement 18/12/2015 - 18/01/2016,C&YPS-Non Delegated,Amazon UK Marketplace,17/12/2015,83.88,Other Equipment & Materials - General,Miscellaneous and Specialty Retail Stores,GPC
Statement 18/12/2015 - 18/01/2016,C&YPS-Non Delegated,Amazon UK Marketplace,17/12/2015,44.97,Other Equipment & Materials - General,Miscellaneous and Specialty Retail Stores,GPC
Statement 18/12/2015 - 18/01/2016,C&YPS-Non Delegated,Amazon UK Marketplace,07/01/2016,99.98,Other Expenditure - General,Miscellaneous and Specialty Retail Stores,GPC
Statement 18/12/2015 - 18/01/2016,C&YPS-Non Delegated,Amazon UK Marketplace,13/01/2016,3.85,Other Expenditure - General,Book Stores,GPC
Statement 18/12/2015 - 18/01/2016,C&YPS-Non Delegated,Amazon UK Marketplace,13/01/2016,23.89,Other Expenditure - General,Book Stores,GPC
Statement 18/12/2015 - 18/01/2016,C&YPS-Non Delegated,Amazon UK Marketplace,13/01/2016,11.84,Other Expenditure - General,Book Stores,GPC
Statement 18/12/2015 - 18/01/2016,C&YPS-Non Delegated,Amazon UK Marketplace,13/01/2016,62.25,Other Expenditure - General,Book Stores,GPC
Statement 18/12/2015 - 18/01/2016,C&YPS-Non Delegated,Amazon UK Marketplace,13/01/2016,52.70,Other Expenditure - General,Book Stores,GPC
Statement 18/12/2015 - 18/01/2016,C&YPS-Non Delegated,Amazon UK Marketplace,13/01/2016,82.95,Other Expenditure - General,Miscellaneous and Specialty Retail Stores,GPC
Statement 18/12/2015 - 18/01/2016,C&YPS-Non Delegated,Amazon UK Marketplace,14/01/2016,20.94,Other Expenditure - General,Miscellaneous and Specialty Retail Stores,GPC
Statement 18/12/2015 - 18/01/2016,C&YPS-Non Delegated,Amazon UK Marketplace,15/01/2016,21.30,Other Expenditure - General,Book Stores,GPC
Statement 18/12/2015 - 18/01/2016,C&YPS-Non Delegated,Amazon UK Marketplace,18/12/2015,3.42,Stationery - General,Miscellaneous and Specialty Retail Stores,GPC
Statement 18/12/2015 - 18/01/2016,C&YPS-Non Delegated,Amazon UK Marketplace,13/01/2016,62.40,Stationery - General,Miscellaneous and Specialty Retail Stores,GPC
Statement 18/12/2015 - 18/01/2016,C&YPS-Non Delegated,Amazon UK Retail,11/01/2016,33.24,Books - General,Direct Marketers - Other,GPC
Statement 18/12/2015 - 18/01/2016,C&YPS-Non Delegated,Amazon UK Retail,11/01/2016,22.25,IT Equipment - General,Direct Marketers - Other,GPC
Statement 18/12/2015 - 18/01/2016,C&YPS-Non Delegated,Amazon UK Retail,17/12/2015,10.55,Other Equipment & Materials - General,Direct Marketers - Other,GPC
Statement 18/12/2015 - 18/01/2016,C&YPS-Non Delegated,Amazon UK Retail,17/12/2015,50.50,Other Equipment & Materials - General,Direct Marketers - Other,GPC
Statement 18/12/2015 - 18/01/2016,C&YPS-Non Delegated,Amazon UK Retail,18/12/2015,48.60,Other Equipment & Materials - General,Direct Marketers - Other,GPC
Statement 18/12/2015 - 18/01/2016,C&YPS-Non Delegated,Amazon UK Retail,13/01/2016,17.98,Other Equipment & Materials - General,Direct Marketers - Other,GPC
Statement 18/12/2015 - 18/01/2016,C&YPS-Non Delegated,Amazon UK Retail,04/01/2016,11.01,Other Expenditure - General,Direct Marketers - Other,GPC
Statement 18/12/2015 - 18/01/2016,C&YPS-Non Delegated,Amazon UK Retail,04/01/2016,43.49,Other Expenditure - General,Direct Marketers - Other,GPC
Statement 18/12/2015 - 18/01/2016,C&YPS-Non Delegated,Amazon UK Retail,05/01/2016,29.43,Other Expenditure - General,Direct Marketers - Other,GPC
Statement 18/12/2015 - 18/01/2016,C&YPS-Non Delegated,Amazon UK Retail,14/01/2016,23.51,Other Expenditure - General,Direct Marketers - Other,GPC
Statement 18/12/2015 - 18/01/2016,C&YPS-Non Delegated,Amazon UK Retail,15/01/2016,110.00,Other Expenditure - General,Direct Marketers - Other,GPC
Statement 18/12/2015 - 18/01/2016,C&YPS-Non Delegated,AmazonLocal,09/01/2016,34.00,Other Equipment & Materials - General,Miscellaneous and Specialty Retail Stores,GPC
Statement 18/12/2015 - 18/01/2016,C&YPS-Non Delegated,AmazonLocal,09/01/2016,44.00,Other Equipment & Materials - General,Miscellaneous and Specialty Retail Stores,GPC
Statement 18/12/2015 - 18/01/2016,C&YPS-Non Delegated,ARGOS,15/01/2016,66.49,Materials - General,Discount Stores,GPC
Statement 18/12/2015 - 18/01/2016,C&YPS-Non Delegated,ARGOS LTD,22/12/2015,242.01,Other Transfer Payments - Leaving Care Grants,Discount Stores,GPC
Statement 18/12/2015 - 18/01/2016,C&YPS-Non Delegated,ARGOS LTD,23/12/2015,-7.59,Other Transfer Payments - Leaving Care Grants,Discount Stores,GPC
Statement 18/12/2015 - 18/01/2016,C&YPS-Non Delegated,ARGOS LTD,26/12/2015,74.98,Other Transfer Payments - Leaving Care Grants,Discount Stores,GPC
Statement 18/12/2015 - 18/01/2016,C&YPS-Non Delegated,ARGOS LTD,29/12/2015,130.82,Other Transfer Payments - Leaving Care Grants,Discount Stores,GPC
Statement 18/12/2015 - 18/01/2016,C&YPS-Non Delegated,ARGOS LTD,18/12/2015,100.00,Provisions - General,Discount Stores,GPC
Statement 18/12/2015 - 18/01/2016,C&YPS-Non Delegated,ARGOS RETAIL GROUP,15/01/2016,62.93,Materials - General,Discount Stores,GPC
Statement 18/12/2015 - 18/01/2016,C&YPS-Non Delegated,ARGOS RETAIL GROUP,14/01/2016,53.94,Other Equipment & Materials - General,Discount Stores,GPC
Statement 18/12/2015 - 18/01/2016,C&YPS-Non Delegated,ASDA HOME SHOPPING,04/01/2016,-0.60,Other Expenditure - General,"Grocery Stores, Supermarkets",GPC
Statement 18/12/2015 - 18/01/2016,C&YPS-Non Delegated,ASDA HOME SHOPPING,04/01/2016,27.02,Other Expenditure - General,"Grocery Stores, Supermarkets",GPC
Statement 18/12/2015 - 18/01/2016,C&YPS-Non Delegated,ASDA HOME SHOPPING,11/01/2016,28.26,Other Expenditure - General,"Grocery Stores, Supermarkets",GPC
Statement 18/12/2015 - 18/01/2016,C&YPS-Non Delegated,ASDA HOME SHOPPING,11/01/2016,0.40,Other Expenditure - General,"Grocery Stores, Supermarkets",GPC
Statement 18/12/2015 - 18/01/2016,C&YPS-Non Delegated,ASDA STORES,13/01/2016,60.39,Other Expenditure - General,"Grocery Stores, Supermarkets",GPC
Statement 18/12/2015 - 18/01/2016,C&YPS-Non Delegated,ASDA STORES,18/12/2015,6.67,Provisions - General,"Grocery Stores, Supermarkets",GPC
Statement 18/12/2015 - 18/01/2016,C&YPS-Non Delegated,ASDA SUPERSTORE,08/01/2016,3.35,Materials - General,"Grocery Stores, Supermarkets",GPC
Statement 18/12/2015 - 18/01/2016,C&YPS-Non Delegated,ASDA SUPERSTORE,15/01/2016,3.81,Materials - General,"Grocery Stores, Supermarkets",GPC
Statement 18/12/2015 - 18/01/2016,C&YPS-Non Delegated,ASDA SUPERSTORE,15/01/2016,3.00,Materials - General,"Grocery Stores, Supermarkets",GPC
Statement 18/12/2015 - 18/01/2016,C&YPS-Non Delegated,ASDA SUPERSTORE,22/12/2015,56.85,Other Transfer Payments - Leaving Care Grants,"Grocery Stores, Supermarkets",GPC
Statement 18/12/2015 - 18/01/2016,C&YPS-Non Delegated,ASDA SUPERSTORE,05/01/2016,5.00,Other Transfer Payments - Leaving Care Grants,"Grocery Stores, Supermarkets",GPC
Statement 18/12/2015 - 18/01/2016,C&YPS-Non Delegated,ASDA SUPERSTORE,19/12/2015,105.82,Other Transfer Payments - Section 24,"Grocery Stores, Supermarkets",GPC
Statement 18/12/2015 - 18/01/2016,C&YPS-Non Delegated,ASDA SUPERSTORE,18/12/2015,110.21,Provisions - General,"Grocery Stores, Supermarkets",GPC
Statement 18/12/2015 - 18/01/2016,C&YPS-Non Delegated,ASDA SUPERSTORE,23/12/2015,121.71,Provisions - General,"Grocery Stores, Supermarkets",GPC
Statement 18/12/2015 - 18/01/2016,C&YPS-Non Delegated,ASDA SUPERSTORE,02/01/2016,62.56,Provisions - General,"Grocery Stores, Supermarkets",GPC
Statement 18/12/2015 - 18/01/2016,C&YPS-Non Delegated,ASDA SUPERSTORE,04/01/2016,123.16,Provisions - General,"Grocery Stores, Supermarkets",GPC
Statement 18/12/2015 - 18/01/2016,C&YPS-Non Delegated,ASDA SUPERSTORE,04/01/2016,163.09,Provisions - General,"Grocery Stores, Supermarkets",GPC
Statement 18/12/2015 - 18/01/2016,C&YPS-Non Delegated,B&M RETAIL LTD,17/12/2015,7.73,Provisions - General,Discount Stores,GPC
Statement 18/12/2015 - 18/01/2016,C&YPS-Non Delegated,BEST WESTERN MONKBAR HTL,22/12/2015,70.47,Subsistence - General,Best Western Hotels,GPC
Statement 18/12/2015 - 18/01/2016,C&YPS-Non Delegated,BIFFA WASTE SERVICES LIMI,15/01/2016,213.77,Electricity - General,"Utilities-Electric, Gas, Sanitary, Water",GPC
Statement 18/12/2015 - 18/01/2016,C&YPS-Non Delegated,BT BILL PAYMENT 1,15/01/2016,67.07,Communications Equipment - General,Telecommunication Equipment Including Telephone Sa,GPC
Statement 18/12/2015 - 18/01/2016,C&YPS-Non Delegated,BT BILL PAYMENT 1,14/01/2016,57.23,R & M of Buildings - General,Telecommunication Equipment Including Telephone Sa,GPC
Statement 18/12/2015 - 18/01/2016,C&YPS-Non Delegated,BT BILL PAYMENT 2,06/01/2016,110.97,R & M of Buildings - General,Telecommunication Equipment Including Telephone Sa,GPC
Statement 18/12/2015 - 18/01/2016,C&YPS-Non Delegated,BT BILL PAYMENT 2,17/12/2015,106.50,Telephones - General,Telecommunication Equipment Including Telephone Sa,GPC
Statement 18/12/2015 - 18/01/2016,C&YPS-Non Delegated,CAFFE NERO,14/01/2016,9.05,Subsistence - General,"Eating Places, Restaurants",GPC
Statement 18/12/2015 - 18/01/2016,C&YPS-Non Delegated,CARD FACTORY,05/01/2016,5.53,Other Transfer Payments - Birthday & Christmas Presents,"Gift, Card, Novelty, and Souvenir Shops",GPC
Statement 18/12/2015 - 18/01/2016,C&YPS-Non Delegated,CARRIER BAG SHOP,12/01/2016,87.38,Other Expenditure - General,Business Services-Not Elsewhere Classified,GPC
Statement 18/12/2015 - 18/01/2016,C&YPS-Non Delegated,CENTRAL ENG COOP,18/12/2015,4.49,Materials - General,Department Stores,GPC
Statement 18/12/2015 - 18/01/2016,C&YPS-Non Delegated,CENTRAL ENG COOP,11/01/2016,5.90,Materials - General,Department Stores,GPC
Statement 18/12/2015 - 18/01/2016,C&YPS-Non Delegated,CENTRAL ENG COOP,13/01/2016,4.20,Materials - General,Department Stores,GPC
Statement 18/12/2015 - 18/01/2016,C&YPS-Non Delegated,CENTRAL ENG COOP,14/01/2016,3.47,Materials - General,Department Stores,GPC
Statement 18/12/2015 - 18/01/2016,C&YPS-Non Delegated,CENTRAL ENG COOP,14/01/2016,16.29,Materials - General,Department Stores,GPC
Statement 18/12/2015 - 18/01/2016,C&YPS-Non Delegated,CENTRAL ENG COOP,14/01/2016,17.22,Other Equipment & Materials - General,Department Stores,GPC
Statement 18/12/2015 - 18/01/2016,C&YPS-Non Delegated,COSTA COFFEE,23/12/2015,10.00,Provisions - General,Fast-Food Restaurants (Quick Payment Service Pilot,GPC
Statement 18/12/2015 - 18/01/2016,C&YPS-Non Delegated,CUMBRIA COUNTY COU,22/12/2015,12.50,Other Transfer Payments - Section 23 Grants,Information Retrieval Services,GPC
Statement 18/12/2015 - 18/01/2016,C&YPS-Non Delegated,CURRYS ONLINE,29/12/2015,149.00,Other Transfer Payments - Leaving Care Grants,"RADIO, TELEVISION, AND STEREO STORES (ELECTRONIC STORES)",GPC
Statement 18/12/2015 - 18/01/2016,C&YPS-Non Delegated,CURRYS S/S,15/01/2016,279.99,Materials - General,Household Appliance Stores,GPC
Statement 18/12/2015 - 18/01/2016,C&YPS-Non Delegated,DE MONTFORT EXPERTISE LTD,05/01/2016,217.00,Other Transfer Payments - Sector 17- Other,"Colleges, Universities, Professional Schools, and",GPC
Statement 18/12/2015 - 18/01/2016,C&YPS-Non Delegated,DIGITAL DEADLINE LIMIT,08/01/2016,110.04,Stationery - General,Quick Copy and Reproduction Services,GPC
Statement 18/12/2015 - 18/01/2016,C&YPS-Non Delegated,DISCLOSURE & BARRING,23/12/2015,13.00,Other Expenditure - General,Government Services-Not Elsewhere Classified,GPC
Statement 18/12/2015 - 18/01/2016,C&YPS-Non Delegated,DOMINOS WIGSTON,17/12/2015,36.64,Other Equipment & Materials - General,"Eating Places, Restaurants",GPC
Statement 18/12/2015 - 18/01/2016,C&YPS-Non Delegated,EAST MIDLANDS MARKET HAR,07/01/2016,11.00,Casual/Essential - General,Automobile Parking Lots and Garages,GPC
Statement 18/12/2015 - 18/01/2016,C&YPS-Non Delegated,EAST MIDLANDS MARKET HAR,12/01/2016,11.00,Casual/Essential - General,Automobile Parking Lots and Garages,GPC
Statement 18/12/2015 - 18/01/2016,C&YPS-Non Delegated,EAST MIDLANDS TRAI,07/01/2016,55.00,Casual/Essential - General,Passenger Railways,GPC
Statement 18/12/2015 - 18/01/2016,C&YPS-Non Delegated,EAST MIDLANDS TRAI,12/01/2016,55.00,Casual/Essential - General,Passenger Railways,GPC
Statement 18/12/2015 - 18/01/2016,C&YPS-Non Delegated,EASTMIDLANDSTRAINS,11/01/2016,58.50,Casual/Essential - General,Passenger Railways,GPC
Statement 18/12/2015 - 18/01/2016,C&YPS-Non Delegated,EB CREATIVE TOOLS FOR,14/01/2016,64.49,Training Expenses - General,Business Services-Not Elsewhere Classified,GPC
Statement 18/12/2015 - 18/01/2016,C&YPS-Non Delegated,EB CREATIVE TOOLS FOR,15/01/2016,64.49,Training Expenses - General,Business Services-Not Elsewhere Classified,GPC
Statement 18/12/2015 - 18/01/2016,C&YPS-Non Delegated,ESPO,14/01/2016,38.25,Other Equipment & Materials - General,Government Services-Not Elsewhere Classified,GPC
Statement 18/12/2015 - 18/01/2016,C&YPS-Non Delegated,EXPEDIA 110411384494,18/12/2015,13.00,Public Transport -  Staff - General,Travel Agencies,GPC
Statement 18/12/2015 - 18/01/2016,C&YPS-Non Delegated,EXPEDIA 110411405267,18/12/2015,3.00,Public Transport -  Staff - General,Travel Agencies,GPC
Statement 18/12/2015 - 18/01/2016,C&YPS-Non Delegated,EXPEDIA 110411405267,18/12/2015,13.00,Public Transport -  Staff - General,Travel Agencies,GPC
Statement 18/12/2015 - 18/01/2016,C&YPS-Non Delegated,EXPEDIA110411384494,18/12/2015,3.00,Public Transport -  Staff - General,Travel Agencies,GPC
Statement 18/12/2015 - 18/01/2016,C&YPS-Non Delegated,FACEBOOK WGZCE8JL52,31/12/2015,18.12,Publicity/Marketing - Information Provision,Advertising Services,GPC
Statement 18/12/2015 - 18/01/2016,C&YPS-Non Delegated,FAST KEY SERVICES,05/01/2016,12.26,Other Equipment & Materials - General,Business Services-Not Elsewhere Classified,GPC
Statement 18/12/2015 - 18/01/2016,C&YPS-Non Delegated,GOOSEBERRY BUSH,05/01/2016,202.94,Other Transfer Payments - Section 23 Grants,Child Care Services,GPC
Statement 18/12/2015 - 18/01/2016,C&YPS-Non Delegated,GRO HM PASSPORT OFFICE,18/12/2015,-18.50,Other Expenditure - General,Government Services-Not Elsewhere Classified,GPC
Statement 18/12/2015 - 18/01/2016,C&YPS-Non Delegated,GRO HM PASSPORT OFFICE,12/01/2016,9.25,Other Expenditure - General,Government Services-Not Elsewhere Classified,GPC
Statement 18/12/2015 - 18/01/2016,C&YPS-Non Delegated,GRO HM PASSPORT OFFICE,17/12/2015,9.25,Other Transfer Payments - Section 23 Grants,Government Services-Not Elsewhere Classified,GPC
Statement 18/12/2015 - 18/01/2016,C&YPS-Non Delegated,GRO HM PASSPORT OFFICE,18/12/2015,18.50,Other Transfer Payments - Section 23 Grants,Government Services-Not Elsewhere Classified,GPC
Statement 18/12/2015 - 18/01/2016,C&YPS-Non Delegated,HARVESTER,17/12/2015,23.18,Other Transfer Payments - Section 24,"Eating Places, Restaurants",GPC
Statement 18/12/2015 - 18/01/2016,C&YPS-Non Delegated,HM PASSPORT OFFICE,04/01/2016,72.50,Other Transfer Payments - Section 23 Grants,Government Services-Not Elsewhere Classified,GPC
Statement 18/12/2015 - 18/01/2016,C&YPS-Non Delegated,HM PASSPORT OFFICE,12/01/2016,46.00,Other Transfer Payments - Section 23 Grants,Government Services-Not Elsewhere Classified,GPC
Statement 18/12/2015 - 18/01/2016,C&YPS-Non Delegated,HOBBYCRAFT (INTERNET),13/01/2016,36.00,Other Expenditure - General,"Artist Supply Stores, Craft Shops",GPC
Statement 18/12/2015 - 18/01/2016,C&YPS-Non Delegated,HOME BARGAINS,17/12/2015,7.50,Other Equipment & Materials - General,Hardware Stores,GPC
Statement 18/12/2015 - 18/01/2016,C&YPS-Non Delegated,HOME BARGAINS COALVILL,18/12/2015,3.18,General Equipment - General,Hardware Stores,GPC
Statement 18/12/2015 - 18/01/2016,C&YPS-Non Delegated,HOME BARGAINS COALVILL,08/01/2016,6.10,General Equipment - General,Hardware Stores,GPC
Statement 18/12/2015 - 18/01/2016,C&YPS-Non Delegated,HOOD PARK LEISURE,11/01/2016,17.50,Subscriptions - General,Government Services-Not Elsewhere Classified,GPC
Statement 18/12/2015 - 18/01/2016,C&YPS-Non Delegated,IKEA ONLINE,04/01/2016,81.25,General Equipment - General,Miscellaneous House Furnishing Specialty Shops,GPC
Statement 18/12/2015 - 18/01/2016,C&YPS-Non Delegated,IKEA ONLINE,08/01/2016,103.00,General Equipment - General,Miscellaneous House Furnishing Specialty Shops,GPC
Statement 18/12/2015 - 18/01/2016,C&YPS-Non Delegated,IPS DURHAM CONTACT CTR,11/01/2016,0.50,Other Transfer Payments - Section 24,Government Services-Not Elsewhere Classified,GPC
Statement 18/12/2015 - 18/01/2016,C&YPS-Non Delegated,JIM,11/01/2016,90.00,Subscriptions - General,"Membership Clubs (Sports, Recreation, Athletic), C",GPC
Statement 18/12/2015 - 18/01/2016,C&YPS-Non Delegated,LCC COUNTY HALL REGIST,07/01/2016,-22.00,Other Transfer Payments - Section 23 Grants,Government Services-Not Elsewhere Classified,GPC
Statement 18/12/2015 - 18/01/2016,C&YPS-Non Delegated,LCC COUNTY HALL REGIST,12/01/2016,-11.00,Other Transfer Payments - Section 23 Grants,Government Services-Not Elsewhere Classified,GPC
Statement 18/12/2015 - 18/01/2016,C&YPS-Non Delegated,LE PAIN QUOTIDIEN,12/01/2016,2.70,Subsistence - General,"Eating Places, Restaurants",GPC
Statement 18/12/2015 - 18/01/2016,C&YPS-Non Delegated,LEIC CITY COUNCIL,22/12/2015,23.00,Other Transfer Payments - Section 23 Grants,Government Services-Not Elsewhere Classified,GPC
Statement 18/12/2015 - 18/01/2016,C&YPS-Non Delegated,LEIC CITY COUNCIL,22/12/2015,13.00,Other Transfer Payments - Section 23 Grants,Government Services-Not Elsewhere Classified,GPC
Statement 18/12/2015 - 18/01/2016,C&YPS-Non Delegated,LEIC CITY COUNCIL,22/12/2015,13.00,Other Transfer Payments - Section 23 Grants,Government Services-Not Elsewhere Classified,GPC
Statement 18/12/2015 - 18/01/2016,C&YPS-Non Delegated,LEIC CITY COUNCIL,23/12/2015,-13.00,Other Transfer Payments - Section 23 Grants,Government Services-Not Elsewhere Classified,GPC
Statement 18/12/2015 - 18/01/2016,C&YPS-Non Delegated,LEIC CITY COUNCIL,23/12/2015,23.00,Other Transfer Payments - Section 23 Grants,Government Services-Not Elsewhere Classified,GPC
Statement 18/12/2015 - 18/01/2016,C&YPS-Non Delegated,LEIC CITY COUNCIL,29/12/2015,13.00,Other Transfer Payments - Section 23 Grants,Government Services-Not Elsewhere Classified,GPC
Statement 18/12/2015 - 18/01/2016,C&YPS-Non Delegated,LEIC CITY COUNCIL,08/01/2016,23.00,Other Transfer Payments - Section 23 Grants,Government Services-Not Elsewhere Classified,GPC
Statement 18/12/2015 - 18/01/2016,C&YPS-Non Delegated,LEIC CITY COUNCIL,11/01/2016,13.00,Other Transfer Payments - Section 23 Grants,Government Services-Not Elsewhere Classified,GPC
Statement 18/12/2015 - 18/01/2016,C&YPS-Non Delegated,LEIC CITY COUNCIL,11/01/2016,13.00,Other Transfer Payments - Section 23 Grants,Government Services-Not Elsewhere Classified,GPC
Statement 18/12/2015 - 18/01/2016,C&YPS-Non Delegated,LEIC CITY COUNCIL,12/01/2016,23.00,Other Transfer Payments - Section 23 Grants,Government Services-Not Elsewhere Classified,GPC
Statement 18/12/2015 - 18/01/2016,C&YPS-Non Delegated,LEIC CITY COUNCIL,12/01/2016,23.00,Other Transfer Payments - Section 23 Grants,Government Services-Not Elsewhere Classified,GPC
Statement 18/12/2015 - 18/01/2016,C&YPS-Non Delegated,LEIC CITY COUNCIL,12/01/2016,23.00,Other Transfer Payments - Section 23 Grants,Government Services-Not Elsewhere Classified,GPC
Statement 18/12/2015 - 18/01/2016,C&YPS-Non Delegated,LEICESTERSHIRE C COUNC,06/01/2016,11.00,Other Transfer Payments - Section 23 Grants,Government Services-Not Elsewhere Classified,GPC
Statement 18/12/2015 - 18/01/2016,C&YPS-Non Delegated,LEICESTERSHIRE C COUNC,08/01/2016,11.00,Other Transfer Payments - Section 23 Grants,Government Services-Not Elsewhere Classified,GPC
Statement 18/12/2015 - 18/01/2016,C&YPS-Non Delegated,LIDL UK,23/12/2015,51.56,Provisions - General,"Grocery Stores, Supermarkets",GPC
Statement 18/12/2015 - 18/01/2016,C&YPS-Non Delegated,LIDL UK,09/01/2016,41.07,Provisions - General,"Grocery Stores, Supermarkets",GPC
Statement 18/12/2015 - 18/01/2016,C&YPS-Non Delegated,LIDL UK,13/01/2016,108.46,Provisions - General,"Grocery Stores, Supermarkets",GPC
Statement 18/12/2015 - 18/01/2016,C&YPS-Non Delegated,LOVE2REWARD.CO.UK,08/01/2016,2561.00,Other Expenditure - General,"Civic, Social, and Fraternal Associations",GPC
Statement 18/12/2015 - 18/01/2016,C&YPS-Non Delegated,LUFTHANSA   2201614450917,18/12/2015,257.24,Public Transport -  Staff - General,Lufthansa,GPC
Statement 18/12/2015 - 18/01/2016,C&YPS-Non Delegated,LUFTHANSA   2201614450933,18/12/2015,257.24,Public Transport -  Staff - General,Lufthansa,GPC
Statement 18/12/2015 - 18/01/2016,C&YPS-Non Delegated,LUFTHANSA   2208205955919,30/12/2015,12.00,Public Transport -  Staff - General,Lufthansa,GPC
Statement 18/12/2015 - 18/01/2016,C&YPS-Non Delegated,LUFTHANSA   2208205955920,30/12/2015,12.00,Public Transport -  Staff - General,Lufthansa,GPC
Statement 18/12/2015 - 18/01/2016,C&YPS-Non Delegated,LUFTHANSA   2208205956070,31/12/2015,12.00,Public Transport -  Staff - General,Lufthansa,GPC
Statement 18/12/2015 - 18/01/2016,C&YPS-Non Delegated,LUFTHANSA   2208205956071,31/12/2015,12.00,Public Transport -  Staff - General,Lufthansa,GPC
Statement 18/12/2015 - 18/01/2016,C&YPS-Non Delegated,M&S SIMPLY FOOD - SSP,07/01/2016,8.00,Provisions - General,"Miscellaneous Food Stores-Convenience Stores, Mark",GPC
Statement 18/12/2015 - 18/01/2016,C&YPS-Non Delegated,MCDONALDS,17/12/2015,4.16,Other Equipment & Materials - General,"Eating Places, Restaurants",GPC
Statement 18/12/2015 - 18/01/2016,C&YPS-Non Delegated,MCDONALDS,21/12/2015,11.15,Other Equipment & Materials - General,"Eating Places, Restaurants",GPC
Statement 18/12/2015 - 18/01/2016,C&YPS-Non Delegated,MCDONALDS,04/01/2016,2.28,Other Equipment & Materials - General,"Eating Places, Restaurants",GPC
Statement 18/12/2015 - 18/01/2016,C&YPS-Non Delegated,MCDONALDS,12/01/2016,2.32,Other Equipment & Materials - General,Fast-Food Restaurants (Quick Payment Service Pilot,GPC
Statement 18/12/2015 - 18/01/2016,C&YPS-Non Delegated,MCDONALDS,12/01/2016,5.22,Other Equipment & Materials - General,Fast-Food Restaurants (Quick Payment Service Pilot,GPC
Statement 18/12/2015 - 18/01/2016,C&YPS-Non Delegated,MCDONALDS,15/01/2016,5.18,Other Expenditure - General,"Eating Places, Restaurants",GPC
Statement 18/12/2015 - 18/01/2016,C&YPS-Non Delegated,MCDONALDS,06/01/2016,4.98,Subsistence - General,Fast-Food Restaurants (Quick Payment Service Pilot,GPC
Statement 18/12/2015 - 18/01/2016,C&YPS-Non Delegated,MCDONALDS,13/01/2016,5.19,Subsistence - General,"Eating Places, Restaurants",GPC
Statement 18/12/2015 - 18/01/2016,C&YPS-Non Delegated,MDN WELCB/WAITROSE,07/01/2016,9.45,Provisions - General,"Miscellaneous Food Stores-Convenience Stores, Mark",GPC
Statement 18/12/2015 - 18/01/2016,C&YPS-Non Delegated,MEASHAM HARDWARE,21/12/2015,3.79,Provisions - General,Hardware Equipment and Supplies,GPC
Statement 18/12/2015 - 18/01/2016,C&YPS-Non Delegated,MERCURY NEWS 63917/453,17/12/2015,3.00,Operational Equipment - General,"Grocery Stores, Supermarkets",GPC
Statement 18/12/2015 - 18/01/2016,C&YPS-Non Delegated,MG LEICESTER LTD,13/01/2016,3.19,Other Equipment & Materials - General,"Eating Places, Restaurants",GPC
Statement 18/12/2015 - 18/01/2016,C&YPS-Non Delegated,MRC COMMUNITY ACTI,21/12/2015,164.00,Provisions - General,Charitable and Social Service Organizations,GPC
Statement 18/12/2015 - 18/01/2016,C&YPS-Non Delegated,MUFFIN BREAK (LOUGHBOR,17/12/2015,5.70,Other Equipment & Materials - General,"Eating Places, Restaurants",GPC
Statement 18/12/2015 - 18/01/2016,C&YPS-Non Delegated,NBN INTERNATIONAL,13/01/2016,34.99,Books - General,Book Stores,GPC
Statement 18/12/2015 - 18/01/2016,C&YPS-Non Delegated,NCP LIMITED,12/01/2016,8.00,Casual/Essential - General,Automobile Parking Lots and Garages,GPC
Statement 18/12/2015 - 18/01/2016,C&YPS-Non Delegated,NESSY LEARNING,08/01/2016,72.00,Schools Agency staff - Teaching Staff,Professional Services-Not Elsewhere Classified,GPC
Statement 18/12/2015 - 18/01/2016,C&YPS-Non Delegated,NET BUSTER CARP & COAR,22/12/2015,79.00,Materials - General,Sporting Goods Stores,GPC
Statement 18/12/2015 - 18/01/2016,C&YPS-Non Delegated,NOTTINGHAM CITY CO,08/01/2016,11.00,Other Transfer Payments - Section 23 Grants,Computer Network/Information Services,GPC
Statement 18/12/2015 - 18/01/2016,C&YPS-Non Delegated,OADBY & WIGSTON B.COUN,14/01/2016,349.32,Rent - General,Government Services-Not Elsewhere Classified,GPC
Statement 18/12/2015 - 18/01/2016,C&YPS-Non Delegated,PAYPAL  CJN UK LTD,12/01/2016,19.99,Other Expenditure - General,Miscellaneous and Specialty Retail Stores,GPC
Statement 18/12/2015 - 18/01/2016,C&YPS-Non Delegated,PAYPAL  DUNBARCOSTU,12/01/2016,23.14,Other Expenditure - General,Miscellaneous and Specialty Retail Stores,GPC
Statement 18/12/2015 - 18/01/2016,C&YPS-Non Delegated,PAYPAL  NIGELWILLIA,12/01/2016,9.65,Other Expenditure - General,"Automotive Parts, Accessories Stores",GPC
Statement 18/12/2015 - 18/01/2016,C&YPS-Non Delegated,PILLINGS LOCK MARINA L,08/01/2016,4.00,Other Equipment & Materials - General,"Marinas, Marine Service/Suppliers",GPC
Statement 18/12/2015 - 18/01/2016,C&YPS-Non Delegated,PIZZA HUT 782,17/12/2015,12.36,Subsistence - General,"Eating Places, Restaurants",GPC
Statement 18/12/2015 - 18/01/2016,C&YPS-Non Delegated,POST OFFICE COUNTER,08/01/2016,8.82,Other Expenditure - General,Postage Stamps,GPC
Statement 18/12/2015 - 18/01/2016,C&YPS-Non Delegated,POST OFFICE COUNTER,04/01/2016,21.60,Postal Services - General,Postage Stamps,GPC
Statement 18/12/2015 - 18/01/2016,C&YPS-Non Delegated,POUNDLAND LTD 1589,18/12/2015,12.50,Provisions - General,Discount Stores,GPC
Statement 18/12/2015 - 18/01/2016,C&YPS-Non Delegated,POUNDSTRETCHER 175,17/12/2015,1.10,Stationery - General,"Drapery, Window Coverings, and Upholstery Stores",GPC
Statement 18/12/2015 - 18/01/2016,C&YPS-Non Delegated,QUEENSWAY COFFEE,15/01/2016,5.20,Subsistence - General,"Eating Places, Restaurants",GPC
Statement 18/12/2015 - 18/01/2016,C&YPS-Non Delegated,ROBERT DYAS HOLDNG LTD,11/01/2016,28.28,Other Equipment & Materials - General,Hardware Stores,GPC
Statement 18/12/2015 - 18/01/2016,C&YPS-Non Delegated,SAINSBURY'S S/MKT,17/12/2015,22.31,Materials - General,"Grocery Stores, Supermarkets",GPC
Statement 18/12/2015 - 18/01/2016,C&YPS-Non Delegated,SAINSBURY'S S/MKT,17/12/2015,17.45,Materials - General,"Grocery Stores, Supermarkets",GPC
Statement 18/12/2015 - 18/01/2016,C&YPS-Non Delegated,SAINSBURY'S S/MKT,04/01/2016,3.10,Materials - General,"Grocery Stores, Supermarkets",GPC
Statement 18/12/2015 - 18/01/2016,C&YPS-Non Delegated,SAINSBURY'S S/MKT,13/01/2016,4.20,Subsistence - General,"Grocery Stores, Supermarkets",GPC
Statement 18/12/2015 - 18/01/2016,C&YPS-Non Delegated,SAINSBURYS S/MKTS,04/01/2016,4.25,Materials - General,"Grocery Stores, Supermarkets",GPC
Statement 18/12/2015 - 18/01/2016,C&YPS-Non Delegated,SAINSBURYS S/MKTS,21/12/2015,30.05,Other Transfer Payments - Section 24,"Grocery Stores, Supermarkets",GPC
Statement 18/12/2015 - 18/01/2016,C&YPS-Non Delegated,SAINSBURYS S/MKTS,21/12/2015,79.09,Other Transfer Payments - Section 24,"Grocery Stores, Supermarkets",GPC
Statement 18/12/2015 - 18/01/2016,C&YPS-Non Delegated,SAINSBURYS S/MKTS,17/12/2015,2.96,Provisions - General,"Grocery Stores, Supermarkets",GPC
Statement 18/12/2015 - 18/01/2016,C&YPS-Non Delegated,SAINSBURY'S S/MKTS,23/12/2015,7.00,Provisions - General,"Grocery Stores, Supermarkets",GPC
Statement 18/12/2015 - 18/01/2016,C&YPS-Non Delegated,SPAR MARKET HARBOROUGH,26/12/2015,20.00,Other Transfer Payments - Leaving Care Grants,"Grocery Stores, Supermarkets",GPC
Statement 18/12/2015 - 18/01/2016,C&YPS-Non Delegated,ST PANCRAS INTL,12/01/2016,3.25,Subsistence - General,"Eating Places, Restaurants",GPC
Statement 18/12/2015 - 18/01/2016,C&YPS-Non Delegated,STORE FINANCIAL SERVIC,04/01/2016,100.00,Materials - General,Miscellaneous and Specialty Retail Stores,GPC
Statement 18/12/2015 - 18/01/2016,C&YPS-Non Delegated,STORE FINANCIAL SERVIC,04/01/2016,90.00,Materials - General,Miscellaneous and Specialty Retail Stores,GPC
Statement 18/12/2015 - 18/01/2016,C&YPS-Non Delegated,TESCO - PLO,06/01/2016,26.80,General Equipment - General,Miscellaneous and Specialty Retail Stores,GPC
Statement 18/12/2015 - 18/01/2016,C&YPS-Non Delegated,TESCO DIRECT,04/01/2016,238.00,General Equipment - General,Miscellaneous and Specialty Retail Stores,GPC
Statement 18/12/2015 - 18/01/2016,C&YPS-Non Delegated,TESCO DIRECT,06/01/2016,92.97,General Equipment - General,Miscellaneous and Specialty Retail Stores,GPC
Statement 18/12/2015 - 18/01/2016,C&YPS-Non Delegated,TESCO DIRECT,12/01/2016,103.00,Other Expenditure - General,Miscellaneous and Specialty Retail Stores,GPC
Statement 18/12/2015 - 18/01/2016,C&YPS-Non Delegated,TESCO DIRECT,08/01/2016,129.00,Other Transfer Payments - Leaving Care Grants,Miscellaneous and Specialty Retail Stores,GPC
Statement 18/12/2015 - 18/01/2016,C&YPS-Non Delegated,TESCO DIRECT,08/01/2016,315.45,Other Transfer Payments - Leaving Care Grants,Miscellaneous and Specialty Retail Stores,GPC
Statement 18/12/2015 - 18/01/2016,C&YPS-Non Delegated,TESCO STORE 2846,18/12/2015,113.82,Provisions - General,"Grocery Stores, Supermarkets",GPC
Statement 18/12/2015 - 18/01/2016,C&YPS-Non Delegated,TESCO STORE 2849,17/12/2015,32.25,Other Equipment & Materials - General,"Grocery Stores, Supermarkets",GPC
Statement 18/12/2015 - 18/01/2016,C&YPS-Non Delegated,TESCO STORE 2849,04/01/2016,17.27,Other Equipment & Materials - General,"Grocery Stores, Supermarkets",GPC
Statement 18/12/2015 - 18/01/2016,C&YPS-Non Delegated,TESCO STORE 2849,17/12/2015,91.58,Provisions - General,"Grocery Stores, Supermarkets",GPC
Statement 18/12/2015 - 18/01/2016,C&YPS-Non Delegated,TESCO STORE 2878,19/12/2015,26.00,Other Transfer Payments - Section 24,"Grocery Stores, Supermarkets",GPC
Statement 18/12/2015 - 18/01/2016,C&YPS-Non Delegated,TESCO STORE 2878,17/12/2015,4.00,Provisions - General,"Grocery Stores, Supermarkets",GPC
Statement 18/12/2015 - 18/01/2016,C&YPS-Non Delegated,TESCO STORES 2008,18/12/2015,16.99,Other Transfer Payments - Section 24,"Grocery Stores, Supermarkets",GPC
Statement 18/12/2015 - 18/01/2016,C&YPS-Non Delegated,TESCO STORES 5182,22/12/2015,15.30,Other Equipment & Materials - General,"Grocery Stores, Supermarkets",GPC
Statement 18/12/2015 - 18/01/2016,C&YPS-Non Delegated,TESCO STORES 5902,05/01/2016,84.95,Provisions - General,"Grocery Stores, Supermarkets",GPC
Statement 18/12/2015 - 18/01/2016,C&YPS-Non Delegated,TESCO STORES 6135,18/12/2015,42.53,Materials - General,"Grocery Stores, Supermarkets",GPC
Statement 18/12/2015 - 18/01/2016,C&YPS-Non Delegated,TESCO STORES 6135,22/12/2015,270.20,Materials - General,"Grocery Stores, Supermarkets",GPC
Statement 18/12/2015 - 18/01/2016,C&YPS-Non Delegated,THE BOOK PEOPLE,07/01/2016,191.70,Books - General,Book Stores,GPC
Statement 18/12/2015 - 18/01/2016,C&YPS-Non Delegated,THE CURIOUS PIG,07/01/2016,2.95,Subsistence - General,"Eating Places, Restaurants",GPC
Statement 18/12/2015 - 18/01/2016,C&YPS-Non Delegated,THE DYSLEXIA SHOP LTD,14/01/2016,19.09,Recruitment Advertising - General,"Colleges, Universities, Professional Schools, and",GPC
Statement 18/12/2015 - 18/01/2016,C&YPS-Non Delegated,TRAINLINE,13/01/2016,67.42,Casual/Essential - General,Passenger Railways,GPC
Statement 18/12/2015 - 18/01/2016,C&YPS-Non Delegated,TRAVELODGE,19/12/2015,60.00,Other Transfer Payments - Section 24,Travelodge,GPC
Statement 18/12/2015 - 18/01/2016,C&YPS-Non Delegated,TRAVELODGE WEBSITE,22/12/2015,-47.00,Other Transfer Payments - Section 23 Grants,Travelodge,GPC
Statement 18/12/2015 - 18/01/2016,C&YPS-Non Delegated,TRAVELODGE WEBSITE,23/12/2015,-47.00,Other Transfer Payments - Section 23 Grants,Travelodge,GPC
Statement 18/12/2015 - 18/01/2016,C&YPS-Non Delegated,TRAVELODGE WEBSITE,30/12/2015,-76.00,Other Transfer Payments - Section 23 Grants,Travelodge,GPC
Statement 18/12/2015 - 18/01/2016,C&YPS-Non Delegated,TVLICENSING.CO.UK,23/12/2015,145.50,Other Expenditure - General,"Management, Consulting and Public Relations Servic",GPC
Statement 18/12/2015 - 18/01/2016,C&YPS-Non Delegated,UPT - HIGHCROSS LEICESTE,04/01/2016,3.00,Schools Agency staff - Teaching Staff,Professional Services-Not Elsewhere Classified,GPC
Statement 18/12/2015 - 18/01/2016,C&YPS-Non Delegated,UPT - NOTTINGHAMCITY COU,23/12/2015,4.00,Schools Agency staff - Teaching Staff,Professional Services-Not Elsewhere Classified,GPC
Statement 18/12/2015 - 18/01/2016,C&YPS-Non Delegated,W M MORRISONS,14/01/2016,33.00,Materials - General,"Grocery Stores, Supermarkets",GPC
Statement 18/12/2015 - 18/01/2016,C&YPS-Non Delegated,W M MORRISONS,06/01/2016,28.51,Other Equipment & Materials - General,"Grocery Stores, Supermarkets",GPC
Statement 18/12/2015 - 18/01/2016,C&YPS-Non Delegated,W M MORRISONS,14/01/2016,2.07,Other Equipment & Materials - General,"Grocery Stores, Supermarkets",GPC
Statement 18/12/2015 - 18/01/2016,C&YPS-Non Delegated,WH SMITH,04/01/2016,7.08,Materials - General,News Dealers and Newsstands,GPC
Statement 18/12/2015 - 18/01/2016,C&YPS-Non Delegated,WILKO RETAIL LIMIT,17/12/2015,8.46,Catering Equipment - General,Household Appliance Stores,GPC
Statement 18/12/2015 - 18/01/2016,C&YPS-Non Delegated,WILKO RETAIL LIMIT,14/01/2016,8.00,Other Equipment & Materials - General,Household Appliance Stores,GPC
Statement 18/12/2015 - 18/01/2016,C&YPS-Non Delegated,WILKO RETAIL LIMIT,22/12/2015,43.76,Other Transfer Payments - Leaving Care Grants,Household Appliance Stores,GPC
Statement 18/12/2015 - 18/01/2016,C&YPS-Non Delegated,WILKO RETAIL LIMIT,26/12/2015,44.75,Other Transfer Payments - Leaving Care Grants,Household Appliance Stores,GPC
Statement 18/12/2015 - 18/01/2016,C&YPS-Non Delegated,WILKO RETAIL LIMIT,17/12/2015,3.34,Stationery - General,Household Appliance Stores,GPC
Statement 18/12/2015 - 18/01/2016,C&YPS-Non Delegated,WP-SIMPLYISLAM.COM,13/01/2016,189.72,Materials - General,Miscellaneous and Specialty Retail Stores,GPC
Statement 18/12/2015 - 18/01/2016,C&YPS-Non Delegated,WP-THE BRITISH ASS,21/12/2015,25.00,Other Expenditure - General,Charitable and Social Service Organizations,GPC
Statement 18/12/2015 - 18/01/2016,C&YPS-Non Delegated,WP-WORTH PUBLISHIN,18/12/2015,22.48,Books - General,Book Stores,GPC
Statement 18/12/2015 - 18/01/2016,C&YPS-Non Delegated,WWW.ANDERSONSWHOLE,13/01/2016,52.71,Other Expenditure - General,"Gift, Card, Novelty, and Souvenir Shops",GPC
Statement 18/12/2015 - 18/01/2016,C&YPS-Non Delegated,WWW.CJSEVENTS.CO.UK,17/12/2015,123.00,Training Expenses - General,"Management, Consulting and Public Relations Servic",GPC
Statement 18/12/2015 - 18/01/2016,C&YPS-Non Delegated,WWW.COSYDIRECT.COM,15/01/2016,19.40,Stationery - General,"Stationery, Office, and School Supply Stores",GPC
Statement 18/12/2015 - 18/01/2016,C&YPS-Non Delegated,WWW.GO-DISPLAYS.CO.UK,15/01/2016,496.80,Other Equipment & Materials - General,Industrial Supplies Not Elsewhere Classified,GPC
Statement 18/12/2015 - 18/01/2016,C&YPS-Non Delegated,WWW.GO-DISPLAYS.CO.UK,13/01/2016,99.60,Other Expenditure - General,Industrial Supplies Not Elsewhere Classified,GPC
Statement 18/12/2015 - 18/01/2016,C&YPS-Non Delegated,WWW.METROPLAN.CO.UK,14/01/2016,30.00,Stationery - General,"Stationery, Office, and School Supply Stores",GPC
Statement 18/12/2015 - 18/01/2016,C&YPS-Non Delegated,WWW.METROPLAN.CO.UK,15/01/2016,-30.00,Stationery - General,"Stationery, Office, and School Supply Stores",GPC
Statement 18/12/2015 - 18/01/2016,C&YPS-Non Delegated,WWW.MILKANDMORE.CO.UK,22/12/2015,14.04,Provisions - General,Continuity/Subscription Merchants,GPC
Statement 18/12/2015 - 18/01/2016,C&YPS-Non Delegated,WWW.MILKANDMORE.CO.UK,04/01/2016,9.40,Provisions - General,Continuity/Subscription Merchants,GPC
Statement 18/12/2015 - 18/01/2016,C&YPS-Non Delegated,WWW.MILKANDMORE.CO.UK,04/01/2016,10.92,Provisions - General,Continuity/Subscription Merchants,GPC
Statement 18/12/2015 - 18/01/2016,C&YPS-Non Delegated,WWW.MILKANDMORE.CO.UK,04/01/2016,4.68,Provisions - General,Continuity/Subscription Merchants,GPC
Statement 18/12/2015 - 18/01/2016,C&YPS-Non Delegated,WWW.STAPLES.CO.UK,18/12/2015,35.23,Stationery - General,"Stationery, Office, and School Supply Stores",GPC
Statement 18/12/2015 - 18/01/2016,C&YPS-Non Delegated,WWW.THEWORKS.CO.UK,23/12/2015,21.00,Books - General,Book Stores,GPC
Statement 18/12/2015 - 18/01/2016,C&YPS-Non Delegated,WWW.THEWORKS.CO.UK,04/01/2016,20.94,Books - General,Book Stores,GPC
Statement 18/12/2015 - 18/01/2016,C&YPS-Non Delegated,WWW.THEWORKS.CO.UK,07/01/2016,50.00,Books - General,Book Stores,GPC
Statement 18/12/2015 - 18/01/2016,C&YPS-Non Delegated,XEN JEWELLERY DESI,18/12/2015,35.00,Other Transfer Payments - Birthday & Christmas Presents,"Jewelry-Watches, Clocks, and Silverware Stores",GPC
Statement 18/12/2015 - 18/01/2016,C&YPS-Schools,ALDI,13/01/2016,58.49,Materials - General,"Grocery Stores, Supermarkets",GPC
Statement 18/12/2015 - 18/01/2016,C&YPS-Schools,ESPO,07/01/2016,42.00,Other Expenditure - General,Government Services-Not Elsewhere Classified,GPC
Statement 18/12/2015 - 18/01/2016,C&YPS-Schools,ESPO,07/01/2016,89.05,Other Expenditure - General,Government Services-Not Elsewhere Classified,GPC
Statement 18/12/2015 - 18/01/2016,C&YPS-Schools,ESPO,11/01/2016,62.00,Other Expenditure - General,Government Services-Not Elsewhere Classified,GPC
Statement 18/12/2015 - 18/01/2016,C&YPS-Schools,ODEON,16/12/2015,179.36,Public Transport -  Staff - General,Motion Picture Theatres,GPC
Statement 18/12/2015 - 18/01/2016,C&YPS-Schools,TESCO STORES 5182,04/01/2016,14.00,Materials - General,"Grocery Stores, Supermarkets",GPC
Statement 18/12/2015 - 18/01/2016,C&YPS-Schools,TESCO STORES 5182,06/01/2016,77.95,Materials - General,"Grocery Stores, Supermarkets",GPC
Statement 18/12/2015 - 18/01/2016,C&YPS-Schools,WWW GEARBEST COM,07/01/2016,-10.12,Materials - General,Miscellaneous General Merchandise Stores,GPC
Statement 18/12/2015 - 18/01/2016,Central Items,WWW.POSTURITE.CO.UK,23/12/2015,95.95,Administration Expenses - General,Commercial Furniture,GPC
Statement 18/12/2015 - 18/01/2016,Chief Executive,ALTIA SOLUTIONS LTD,21/12/2015,362.60,Training Expenses - General,Computer Software Stores,GPC
Statement 18/12/2015 - 18/01/2016,Chief Executive,Amazon UK Marketplace,14/01/2016,29.00,Materials - General,Miscellaneous and Specialty Retail Stores,GPC
Statement 18/12/2015 - 18/01/2016,Chief Executive,Amazon UK Marketplace,12/01/2016,7.47,Operational Equipment - General,Miscellaneous and Specialty Retail Stores,GPC
Statement 18/12/2015 - 18/01/2016,Chief Executive,Amazon UK Marketplace,12/01/2016,2.35,Operational Equipment - General,Miscellaneous and Specialty Retail Stores,GPC
Statement 18/12/2015 - 18/01/2016,Chief Executive,Amazon UK Marketplace,07/01/2016,14.58,Other Expenditure - General,Miscellaneous and Specialty Retail Stores,GPC
Statement 18/12/2015 - 18/01/2016,Chief Executive,Amazon UK Marketplace,08/01/2016,18.91,Other Expenditure - General,Book Stores,GPC
Statement 18/12/2015 - 18/01/2016,Chief Executive,Amazon UK Marketplace,14/01/2016,26.75,Other Expenditure - General,Miscellaneous and Specialty Retail Stores,GPC
Statement 18/12/2015 - 18/01/2016,Chief Executive,Amazon UK Marketplace,14/01/2016,7.00,Stationery - General,Miscellaneous and Specialty Retail Stores,GPC
Statement 18/12/2015 - 18/01/2016,Chief Executive,Amazon UK Retail,08/01/2016,38.18,Other Expenditure - General,Direct Marketers - Other,GPC
Statement 18/12/2015 - 18/01/2016,Chief Executive,Amazon UK Retail,08/01/2016,82.95,Other Expenditure - General,Direct Marketers - Other,GPC
Statement 18/12/2015 - 18/01/2016,Chief Executive,Amazon UK Retail,16/01/2016,33.01,Other Expenditure - General,Direct Marketers - Other,GPC
Statement 18/12/2015 - 18/01/2016,Chief Executive,CENTRAL ENG COOP,17/12/2015,10.00,Other Expenditure - General,Department Stores,GPC
Statement 18/12/2015 - 18/01/2016,Chief Executive,CHARNWOOD BOROUGH COUNCI,07/01/2016,2.20,Casual/Essential - General,Automobile Parking Lots and Garages,GPC
Statement 18/12/2015 - 18/01/2016,Chief Executive,DISCLOSURE SCOT,12/01/2016,25.00,Other Expenditure - General,Government Services-Not Elsewhere Classified,GPC
Statement 18/12/2015 - 18/01/2016,Chief Executive,EASYJET     000EQ1D4S5,24/12/2015,1306.03,Other Allowances/Expenses - General,EASYJET AIR,GPC
Statement 18/12/2015 - 18/01/2016,Chief Executive,EASYJET     000EQ2J7FL,05/01/2016,956.62,Other Allowances/Expenses - General,EASYJET AIR,GPC
Statement 18/12/2015 - 18/01/2016,Chief Executive,EASYJET     000EQ2JDMD,05/01/2016,322.87,Other Allowances/Expenses - General,EASYJET AIR,GPC
Statement 18/12/2015 - 18/01/2016,Chief Executive,EASYJET     000EQ2JFS8,05/01/2016,350.30,Other Allowances/Expenses - General,EASYJET AIR,GPC
Statement 18/12/2015 - 18/01/2016,Chief Executive,ECLIPSE NETWORKING LIM,23/12/2015,1.25,Consultants & Specialists - General,Continuity/Subscription Merchants,GPC
Statement 18/12/2015 - 18/01/2016,Chief Executive,FOREIGN EXCHANGE FEE,23/12/2015,31.63,Other Allowances/Expenses - General,Misc-Unknown,GPC
Statement 18/12/2015 - 18/01/2016,Chief Executive,MARKS & SPENCER,13/01/2016,9.99,Other Expenditure - General,"Grocery Stores, Supermarkets",GPC
Statement 18/12/2015 - 18/01/2016,Chief Executive,SBK UK LTD,07/01/2016,401.60,Training Expenses - General,Business Services-Not Elsewhere Classified,GPC
Statement 18/12/2015 - 18/01/2016,Chief Executive,STURGESS JAGUAR,11/01/2016,487.85,Other Expenditure - General,"Automobile and Truck Dealers-Sales, Service, Repai",GPC
Statement 18/12/2015 - 18/01/2016,Chief Executive,SUN RIVIERA,22/12/2015,1150.34,Other Allowances/Expenses - General,"Lodging-Hotels, Motels, Resorts",GPC
Statement 18/12/2015 - 18/01/2016,Chief Executive,TESCO-STORES 2846,03/01/2016,38.39,Other Expenditure - General,"Grocery Stores, Supermarkets",GPC
Statement 18/12/2015 - 18/01/2016,Chief Executive,WATERSHED PACKAGING LT,22/12/2015,152.08,Other Expenditure - General,Business Services-Not Elsewhere Classified,GPC
Statement 18/12/2015 - 18/01/2016,Chief Executive,WWW.CURVEONLINE.CO.UK,15/01/2016,27.00,Other Services - General,Charitable and Social Service Organizations,GPC
Statement 18/12/2015 - 18/01/2016,Chief Executive,WWW.ICO.GOV.UK,13/01/2016,35.00,Other Expenditure - General,Government Services-Not Elsewhere Classified,GPC
Statement 18/12/2015 - 18/01/2016,Chief Executive,WWW.MISCO.CO.UK,06/01/2016,245.35,Stationery - General,"Computers, Computer Peripheral Equipment, Software",GPC
Statement 18/12/2015 - 18/01/2016,Corporate Resources,ACADEMY HIGH ACHIEVERS,24/12/2015,747.63,Training Expenses - General,Business and Secretarial Schools,GPC
Statement 18/12/2015 - 18/01/2016,Corporate Resources,ACADEMY HIGH ACHIEVERS,27/12/2015,747.64,Training Expenses - General,Business and Secretarial Schools,GPC
Statement 18/12/2015 - 18/01/2016,Corporate Resources,ADAMS MARK,24/12/2015,565.00,Subsistence - General,Adams Mark Hotels,GPC
Statement 18/12/2015 - 18/01/2016,Corporate Resources,ALDI,13/01/2016,0.89,Other Expenditure - General,"Grocery Stores, Supermarkets",GPC
Statement 18/12/2015 - 18/01/2016,Corporate Resources,ALTIA SOLUTIONS LTD,21/12/2015,70.00,IT Equipment - Software,Computer Software Stores,GPC
Statement 18/12/2015 - 18/01/2016,Corporate Resources,Amazon Svcs Europe SAR,21/12/2015,5.85,Stationery - General,Book Stores,GPC
Statement 18/12/2015 - 18/01/2016,Corporate Resources,Amazon UK Marketplace,11/01/2016,17.47,Other Expenditure - General,Miscellaneous and Specialty Retail Stores,GPC
Statement 18/12/2015 - 18/01/2016,Corporate Resources,Amazon UK Marketplace,12/01/2016,5.82,Other Expenditure - General,Miscellaneous and Specialty Retail Stores,GPC
Statement 18/12/2015 - 18/01/2016,Corporate Resources,Amazon UK Marketplace,22/12/2015,4.48,Other Services - General,Miscellaneous and Specialty Retail Stores,GPC
Statement 18/12/2015 - 18/01/2016,Corporate Resources,Amazon UK Marketplace,06/01/2016,14.47,Other Services - General,Book Stores,GPC
Statement 18/12/2015 - 18/01/2016,Corporate Resources,Amazon UK Marketplace,07/01/2016,4.48,Other Services - General,Miscellaneous and Specialty Retail Stores,GPC
Statement 18/12/2015 - 18/01/2016,Corporate Resources,Amazon UK Marketplace,08/01/2016,26.95,Other Services - General,Miscellaneous and Specialty Retail Stores,GPC
Statement 18/12/2015 - 18/01/2016,Corporate Resources,Amazon UK Marketplace,12/01/2016,10.98,Publicity/Marketing - General,Miscellaneous and Specialty Retail Stores,GPC
Statement 18/12/2015 - 18/01/2016,Corporate Resources,Amazon UK Marketplace,13/01/2016,2.96,Publicity/Marketing - General,Miscellaneous and Specialty Retail Stores,GPC
Statement 18/12/2015 - 18/01/2016,Corporate Resources,Amazon UK Marketplace,14/01/2016,1.90,Publicity/Marketing - General,Book Stores,GPC
Statement 18/12/2015 - 18/01/2016,Corporate Resources,Amazon UK Marketplace,22/12/2015,22.49,R & M Mechanical - Mechanical Repairs,Miscellaneous and Specialty Retail Stores,GPC
Statement 18/12/2015 - 18/01/2016,Corporate Resources,Amazon UK Marketplace,22/12/2015,3.99,Stationery - General,Book Stores,GPC
Statement 18/12/2015 - 18/01/2016,Corporate Resources,Amazon UK Marketplace,24/12/2015,5.06,Training Expenses - General,Miscellaneous and Specialty Retail Stores,GPC
Statement 18/12/2015 - 18/01/2016,Corporate Resources,Amazon UK Marketplace,12/01/2016,61.49,Training Expenses - General,Book Stores,GPC
Statement 18/12/2015 - 18/01/2016,Corporate Resources,Amazon UK Retail,15/01/2016,37.03,IT Equipment - Purchase - Hardware,Direct Marketers - Other,GPC
Statement 18/12/2015 - 18/01/2016,Corporate Resources,Amazon UK Retail,22/12/2015,8.97,Stationery - General,Direct Marketers - Other,GPC
Statement 18/12/2015 - 18/01/2016,Corporate Resources,Amazon UK Retail,14/01/2016,10.42,Stationery - General,Direct Marketers - Other,GPC
Statement 18/12/2015 - 18/01/2016,Corporate Resources,APCOA - NWR MANCHESTER,14/01/2016,13.50,Subsistence - General,Automobile Parking Lots and Garages,GPC
Statement 18/12/2015 - 18/01/2016,Corporate Resources,ARCO LTD,04/01/2016,39.49,Other Expenditure - General,Industrial Supplies Not Elsewhere Classified,GPC
Statement 18/12/2015 - 18/01/2016,Corporate Resources,ASDA STORES 4477,21/12/2015,6.70,Other Expenditure - General,"Grocery Stores, Supermarkets",GPC
Statement 18/12/2015 - 18/01/2016,Corporate Resources,ASDA STORES 4477,05/01/2016,4.85,Other Expenditure - General,"Grocery Stores, Supermarkets",GPC
Statement 18/12/2015 - 18/01/2016,Corporate Resources,ASDA STORES 4477,06/01/2016,0.89,Other Expenditure - General,"Grocery Stores, Supermarkets",GPC
Statement 18/12/2015 - 18/01/2016,Corporate Resources,ASDA STORES 4477,06/01/2016,6.62,Other Expenditure - General,"Grocery Stores, Supermarkets",GPC
Statement 18/12/2015 - 18/01/2016,Corporate Resources,ASDA STORES 4477,06/01/2016,1.45,Other Expenditure - General,"Grocery Stores, Supermarkets",GPC
Statement 18/12/2015 - 18/01/2016,Corporate Resources,ASDA STORES 4477,10/01/2016,6.40,Other Expenditure - General,"Grocery Stores, Supermarkets",GPC
Statement 18/12/2015 - 18/01/2016,Corporate Resources,ASDA STORES 4477,15/01/2016,10.74,Other Expenditure - General,"Grocery Stores, Supermarkets",GPC
Statement 18/12/2015 - 18/01/2016,Corporate Resources,B & Q,03/01/2016,162.16,Other Services - General,"Building Materials, Lumber Stores",GPC
Statement 18/12/2015 - 18/01/2016,Corporate Resources,B2B QUOTE LTD,13/01/2016,345.00,Operational Equipment - General,Business Services-Not Elsewhere Classified,GPC
Statement 18/12/2015 - 18/01/2016,Corporate Resources,BEAUMONT STORE,12/01/2016,6.39,Newspapers & Periodicals - General,News Dealers and Newsstands,GPC
Statement 18/12/2015 - 18/01/2016,Corporate Resources,BICS LTD REC,14/01/2016,476.19,Subscriptions - General,Continuity/Subscription Merchants,GPC
Statement 18/12/2015 - 18/01/2016,Corporate Resources,BLABY DISTRICT COUNCIL,05/01/2016,198.22,Other Expenditure - Recoverable Exp./Stolen Money,Government Services-Not Elsewhere Classified,GPC
Statement 18/12/2015 - 18/01/2016,Corporate Resources,BUDGENS MORETON,15/01/2016,7.15,Provisions - General,"Miscellaneous Food Stores-Convenience Stores, Mark",GPC
Statement 18/12/2015 - 18/01/2016,Corporate Resources,BULLS  HEAD,17/12/2015,53.99,Other Expenditure - General,"Eating Places, Restaurants",GPC
Statement 18/12/2015 - 18/01/2016,Corporate Resources,BUS/WIFI TICKET,11/01/2016,15.00,Public Transport -  Staff - General,"Bus Lines, Charters, Tour Buses",GPC
Statement 18/12/2015 - 18/01/2016,Corporate Resources,CAFE GROUNDED,14/01/2016,13.20,Subsistence - General,"Eating Places, Restaurants",GPC
Statement 18/12/2015 - 18/01/2016,Corporate Resources,CAFE GROUNDED,17/01/2016,13.60,Subsistence - General,"Eating Places, Restaurants",GPC
Statement 18/12/2015 - 18/01/2016,Corporate Resources,CAFE RITAZZA,13/01/2016,2.43,Subsistence - General,Fast-Food Restaurants (Quick Payment Service Pilot,GPC
Statement 18/12/2015 - 18/01/2016,Corporate Resources,CHINA CITY,20/12/2015,11.80,Subsistence - General,"Eating Places, Restaurants",GPC
Statement 18/12/2015 - 18/01/2016,Corporate Resources,COOKS FARM SHOP,30/12/2015,76.50,Other Expenditure - Public Enquiry fees,"Lawn and Garden Supply Stores, Nurseries",GPC
Statement 18/12/2015 - 18/01/2016,Corporate Resources,CO-OP GROUP 070412,04/01/2016,33.05,Other Expenditure - General,"Grocery Stores, Supermarkets",GPC
Statement 18/12/2015 - 18/01/2016,Corporate Resources,CROMWELL TOOLS,13/01/2016,3.38,Materials - General,Hardware Equipment and Supplies,GPC
Statement 18/12/2015 - 18/01/2016,Corporate Resources,CROSS COUNTRY CC,05/01/2016,41.00,Training Expenses - General,Passenger Railways,GPC
Statement 18/12/2015 - 18/01/2016,Corporate Resources,CURRYS SUPERSTORE,28/12/2015,14.99,Stationery - General,"RADIO, TELEVISION, AND STEREO STORES (ELECTRONIC STORES)",GPC
Statement 18/12/2015 - 18/01/2016,Corporate Resources,DESTINET LTD,04/01/2016,174.00,Publicity/Marketing - General,Advertising Services,GPC
Statement 18/12/2015 - 18/01/2016,Corporate Resources,DRAGON INN,06/01/2016,6.25,Subsistence - General,"Eating Places, Restaurants",GPC
Statement 18/12/2015 - 18/01/2016,Corporate Resources,EAST MIDLANDS LEICESTER,15/01/2016,21.00,Casual/Essential - General,Automobile Parking Lots and Garages,GPC
Statement 18/12/2015 - 18/01/2016,Corporate Resources,EAST MIDLANDS LEICESTER,07/01/2016,13.50,Public Transport -  Staff - General,Automobile Parking Lots and Garages,GPC
Statement 18/12/2015 - 18/01/2016,Corporate Resources,EAST MIDLANDS LEICESTER,08/01/2016,27.00,Public Transport -  Staff - General,Automobile Parking Lots and Garages,GPC
Statement 18/12/2015 - 18/01/2016,Corporate Resources,EAST MIDLANDS LEICESTER,08/01/2016,13.50,Public Transport -  Staff - General,Automobile Parking Lots and Garages,GPC
Statement 18/12/2015 - 18/01/2016,Corporate Resources,EAST MIDLANDS MARKET HAR,14/01/2016,11.00,Casual/Essential - General,Automobile Parking Lots and Garages,GPC
Statement 18/12/2015 - 18/01/2016,Corporate Resources,EAST MIDLANDS MARKET HAR,15/01/2016,6.50,Casual/Essential - General,Automobile Parking Lots and Garages,GPC
Statement 18/12/2015 - 18/01/2016,Corporate Resources,EAST MIDLANDS MARKET HAR,17/12/2015,11.00,Public Transport -  Staff - General,Automobile Parking Lots and Garages,GPC
Statement 18/12/2015 - 18/01/2016,Corporate Resources,EAST MIDLANDS MARKET HAR,05/01/2016,11.00,Public Transport -  Staff - General,Automobile Parking Lots and Garages,GPC
Statement 18/12/2015 - 18/01/2016,Corporate Resources,EAST MIDLANDS MARKET HAR,11/01/2016,6.50,Public Transport -  Staff - General,Automobile Parking Lots and Garages,GPC
Statement 18/12/2015 - 18/01/2016,Corporate Resources,EAST MIDLANDS MARKET HAR,13/01/2016,11.00,Public Transport -  Staff - General,Automobile Parking Lots and Garages,GPC
Statement 18/12/2015 - 18/01/2016,Corporate Resources,EASTMIDLANDSTRAINS,07/01/2016,250.00,Casual/Essential - General,Passenger Railways,GPC
Statement 18/12/2015 - 18/01/2016,Corporate Resources,EASTMIDLANDSTRAINS,08/01/2016,223.50,Casual/Essential - General,Passenger Railways,GPC
Statement 18/12/2015 - 18/01/2016,Corporate Resources,EASTMIDLANDSTRAINS,11/01/2016,39.00,Casual/Essential - General,Passenger Railways,GPC
Statement 18/12/2015 - 18/01/2016,Corporate Resources,EASTMIDLANDSTRAINS,06/01/2016,139.17,Public Transport -  Staff - General,Passenger Railways,GPC
Statement 18/12/2015 - 18/01/2016,Corporate Resources,EB ICON CONFERENCE 20,04/01/2016,325.00,Training Expenses - General,Business Services-Not Elsewhere Classified,GPC
Statement 18/12/2015 - 18/01/2016,Corporate Resources,ESPO,08/01/2016,444.00,Other Expenditure - General,Government Services-Not Elsewhere Classified,GPC
Statement 18/12/2015 - 18/01/2016,Corporate Resources,EXTERA LTD,04/01/2016,25.80,Communications Equipment - General,Telecommunication Equipment Including Telephone Sa,GPC
Statement 18/12/2015 - 18/01/2016,Corporate Resources,FACEBOOK 9DJPW8ETE2,01/01/2016,20.04,Publicity/Marketing - General,Advertising Services,GPC
Statement 18/12/2015 - 18/01/2016,Corporate Resources,FACEBOOK D2BTZ82TE2,31/12/2015,5.24,Publicity/Marketing - General,Advertising Services,GPC
Statement 18/12/2015 - 18/01/2016,Corporate Resources,FACEBOOK HN4ML86672,04/01/2016,19.66,Publicity/Marketing - General,Advertising Services,GPC
Statement 18/12/2015 - 18/01/2016,Corporate Resources,FACEBOOK QJCM39WTE2,06/01/2016,40.41,Publicity/Marketing - General,Advertising Services,GPC
Statement 18/12/2015 - 18/01/2016,Corporate Resources,FOREIGN EXCHANGE FEE,13/01/2016,2.28,Other Expenditure - General,Misc-Unknown,GPC
Statement 18/12/2015 - 18/01/2016,Corporate Resources,FOREIGN EXCHANGE FEE,08/01/2016,3.07,Publicity/Marketing - General,Misc-Unknown,GPC
Statement 18/12/2015 - 18/01/2016,Corporate Resources,FOREIGN EXCHANGE FEE,11/01/2016,2.01,Publicity/Marketing - General,Misc-Unknown,GPC
Statement 18/12/2015 - 18/01/2016,Corporate Resources,FOREIGN EXCHANGE FEE,12/01/2016,1.12,Subscriptions - General,Misc-Unknown,GPC
Statement 18/12/2015 - 18/01/2016,Corporate Resources,FS  JotForm,12/01/2016,83.06,Other Expenditure - General,Direct Marketers - Other,GPC
Statement 18/12/2015 - 18/01/2016,Corporate Resources,GANTTIC LLC,11/01/2016,40.71,Subscriptions - General,Miscellaneous and Specialty Retail Stores,GPC
Statement 18/12/2015 - 18/01/2016,Corporate Resources,GASCAGESHOP,14/01/2016,335.00,Materials - General,Construction Materials Not Elsewhere Classified,GPC
Statement 18/12/2015 - 18/01/2016,Corporate Resources,GRAZE BATH,06/01/2016,12.00,Subsistence - General,"Eating Places, Restaurants",GPC
Statement 18/12/2015 - 18/01/2016,Corporate Resources,GYNSILLS,11/01/2016,7.29,Subsistence - General,"Drinking Places (Alcoholic Beverages)-Bars, Tavern",GPC
Statement 18/12/2015 - 18/01/2016,Corporate Resources,HALFORDS 0428,17/12/2015,30.93,Other Services - General,Bicycle Shops-Sales and Service,GPC
Statement 18/12/2015 - 18/01/2016,Corporate Resources,HALFORDS 0560,27/12/2015,6.66,Other Services - General,Bicycle Shops-Sales and Service,GPC
Statement 18/12/2015 - 18/01/2016,Corporate Resources,HARLOW BROS LTD,06/01/2016,40.43,Other Services - General,"Building Materials, Lumber Stores",GPC
Statement 18/12/2015 - 18/01/2016,Corporate Resources,HIGGOTTS,14/01/2016,60.62,Operational Equipment - General,Landscaping and Horticultural Services,GPC
Statement 18/12/2015 - 18/01/2016,Corporate Resources,HIGGOTTS,19/12/2015,17.57,Other Expenditure - General,Landscaping and Horticultural Services,GPC
Statement 18/12/2015 - 18/01/2016,Corporate Resources,HIGGOTTS,15/01/2016,5.96,Other Expenditure - General,Landscaping and Horticultural Services,GPC
Statement 18/12/2015 - 18/01/2016,Corporate Resources,HOOTSUITE MEDIA INC.,07/01/2016,111.49,Publicity/Marketing - General,Business Services-Not Elsewhere Classified,GPC
Statement 18/12/2015 - 18/01/2016,Corporate Resources,HOOTSUITE MEDIA INC.,08/01/2016,73.22,Publicity/Marketing - General,Business Services-Not Elsewhere Classified,GPC
Statement 18/12/2015 - 18/01/2016,Corporate Resources,INDIGO UK,07/01/2016,15.00,Public Transport -  Staff - General,Automobile Parking Lots and Garages,GPC
Statement 18/12/2015 - 18/01/2016,Corporate Resources,INDIGO UK,14/01/2016,12.50,Public Transport -  Staff - General,Automobile Parking Lots and Garages,GPC
Statement 18/12/2015 - 18/01/2016,Corporate Resources,IPF,15/01/2016,-60.00,Conference - General,"Accounting, Auditing, and Bookkeeping Services",GPC
Statement 18/12/2015 - 18/01/2016,Corporate Resources,IT GOVERNANCE LTD,06/01/2016,200.00,Training Expenses - General,Book Stores,GPC
Statement 18/12/2015 - 18/01/2016,Corporate Resources,IVANHOE COUNTRY STORE,21/12/2015,41.90,Other Services - General,Miscellaneous General Merchandise Stores,GPC
Statement 18/12/2015 - 18/01/2016,Corporate Resources,J B TOOL HIRE LTD,06/01/2016,14.85,Other Services - General,"Equipment Rental and Leasing Services, Tool Rental",GPC
Statement 18/12/2015 - 18/01/2016,Corporate Resources,JAMIE'S ITALIAN,21/12/2015,15.00,Subsistence - General,"Eating Places, Restaurants",GPC
Statement 18/12/2015 - 18/01/2016,Corporate Resources,JTS BIKER CLOTHING,14/01/2016,24.99,Protective Clothing & Uniforms - General,Men's And Women's Clothing Stores,GPC
Statement 18/12/2015 - 18/01/2016,Corporate Resources,KEYSOFT SOLUTIONS,08/01/2016,500.00,Training Expenses - General,Computer Software Stores,GPC
Statement 18/12/2015 - 18/01/2016,Corporate Resources,LA GROTTA,05/01/2016,9.70,Subsistence - General,"Eating Places, Restaurants",GPC
Statement 18/12/2015 - 18/01/2016,Corporate Resources,LCC CATERING SERVICES,12/01/2016,4.00,Subsistence - General,Government Services-Not Elsewhere Classified,GPC
Statement 18/12/2015 - 18/01/2016,Corporate Resources,LINKEDIN-2434017454,23/12/2015,227.94,Other Expenditure - General,Continuity/Subscription Merchants,GPC
Statement 18/12/2015 - 18/01/2016,Corporate Resources,M&S SIMPLY FOOD - SSP,13/01/2016,4.50,Subsistence - General,"Miscellaneous Food Stores-Convenience Stores, Mark",GPC
Statement 18/12/2015 - 18/01/2016,Corporate Resources,MAPLIN-206-LOUGHBOROUGH,14/01/2016,26.33,Other Services - General,"RADIO, TELEVISION, AND STEREO STORES (ELECTRONIC STORES)",GPC
Statement 18/12/2015 - 18/01/2016,Corporate Resources,METROLINK TVM,18/12/2015,3.10,Public Transport -  Staff - General,"Bus Lines, Charters, Tour Buses",GPC
Statement 18/12/2015 - 18/01/2016,Corporate Resources,METROLINK TVM,21/12/2015,3.90,Public Transport -  Staff - General,"Bus Lines, Charters, Tour Buses",GPC
Statement 18/12/2015 - 18/01/2016,Corporate Resources,METROLINK TVM,05/01/2016,3.60,Public Transport -  Staff - General,"Bus Lines, Charters, Tour Buses",GPC
Statement 18/12/2015 - 18/01/2016,Corporate Resources,METROLINK TVM,07/01/2016,2.80,Public Transport -  Staff - General,"Bus Lines, Charters, Tour Buses",GPC
Statement 18/12/2015 - 18/01/2016,Corporate Resources,METROLINK TVM,11/01/2016,3.60,Public Transport -  Staff - General,"Bus Lines, Charters, Tour Buses",GPC
Statement 18/12/2015 - 18/01/2016,Corporate Resources,METROLINK TVM,12/01/2016,3.60,Public Transport -  Staff - General,"Bus Lines, Charters, Tour Buses",GPC
Statement 18/12/2015 - 18/01/2016,Corporate Resources,METROLINK TVM,14/01/2016,3.60,Public Transport -  Staff - General,"Bus Lines, Charters, Tour Buses",GPC
Statement 18/12/2015 - 18/01/2016,Corporate Resources,METROLINK TVM,15/01/2016,3.10,Public Transport -  Staff - General,"Bus Lines, Charters, Tour Buses",GPC
Statement 18/12/2015 - 18/01/2016,Corporate Resources,MOREISH CAFE DELI,15/01/2016,4.90,Subsistence - General,"Eating Places, Restaurants",GPC
Statement 18/12/2015 - 18/01/2016,Corporate Resources,OYSTER RENEW WEB,12/01/2016,50.00,Public Transport -  Staff - General,Passenger Railways,GPC
Statement 18/12/2015 - 18/01/2016,Corporate Resources,PASTY SHOP,15/01/2016,4.79,Subsistence - General,Fast-Food Restaurants (Quick Payment Service Pilot,GPC
Statement 18/12/2015 - 18/01/2016,Corporate Resources,PAYPAL  COOLSHOPUK,18/11/2015,-337.99,Publicity/Marketing - General,Computer and Data Processing Services,GPC
Statement 18/12/2015 - 18/01/2016,Corporate Resources,PAYPAL  DAYCOUNTERS,21/12/2015,114.00,Stationery - General,"Stationery, Office, and School Supply Stores",GPC
Statement 18/12/2015 - 18/01/2016,Corporate Resources,PAYPAL  INSTITUTION,11/01/2016,350.00,Training Expenses - General,Charitable and Social Service Organizations,GPC
Statement 18/12/2015 - 18/01/2016,Corporate Resources,PAYPAL  LOCALINFORM,07/01/2016,149.95,Training Expenses - General,Charitable and Social Service Organizations,GPC
Statement 18/12/2015 - 18/01/2016,Corporate Resources,PREMIER INN44521260,16/12/2015,13.60,Subsistence - General,PREMIER TRAVEL,GPC
Statement 18/12/2015 - 18/01/2016,Corporate Resources,PREMIER INN44521260,03/01/2016,66.00,Subsistence - General,PREMIER TRAVEL,GPC
Statement 18/12/2015 - 18/01/2016,Corporate Resources,PREMIER INN44521260,03/01/2016,66.00,Subsistence - General,PREMIER TRAVEL,GPC
Statement 18/12/2015 - 18/01/2016,Corporate Resources,PREMIER INN44521260,03/01/2016,47.00,Subsistence - General,PREMIER TRAVEL,GPC
Statement 18/12/2015 - 18/01/2016,Corporate Resources,PREMIER INN44521260,03/01/2016,47.00,Subsistence - General,PREMIER TRAVEL,GPC
Statement 18/12/2015 - 18/01/2016,Corporate Resources,R MASSEY & SON LTD,15/01/2016,6.95,Other Expenditure - General,Hardware Stores,GPC
Statement 18/12/2015 - 18/01/2016,Corporate Resources,RADISSON BLU HOTEL BIR,08/01/2016,1912.40,Subsistence - General,"Lodging-Hotels, Motels, Resorts",GPC
Statement 18/12/2015 - 18/01/2016,Corporate Resources,RADISSON BLU HOTEL BIR,11/01/2016,600.00,Subsistence - General,"Lodging-Hotels, Motels, Resorts",GPC
Statement 18/12/2015 - 18/01/2016,Corporate Resources,RYMAN 1096,10/01/2016,17.96,Stationery - General,"Stationery, Office, and School Supply Stores",GPC
Statement 18/12/2015 - 18/01/2016,Corporate Resources,SAINSBURYS LOCAL,17/12/2015,5.00,Subsistence - General,"Grocery Stores, Supermarkets",GPC
Statement 18/12/2015 - 18/01/2016,Corporate Resources,SAINSBURYS LOCAL,11/01/2016,5.00,Subsistence - General,"Grocery Stores, Supermarkets",GPC
Statement 18/12/2015 - 18/01/2016,Corporate Resources,SAINSBURY'S S/MKT,16/01/2016,20.00,Materials - General,"Grocery Stores, Supermarkets",GPC
Statement 18/12/2015 - 18/01/2016,Corporate Resources,SCREWFIX,22/12/2015,161.61,Display/Conservn/Exhibitions - Conservation,"Building Materials, Lumber Stores",GPC
Statement 18/12/2015 - 18/01/2016,Corporate Resources,SCREWFIX,12/01/2016,189.95,Display/Conservn/Exhibitions - Conservation,"Building Materials, Lumber Stores",GPC
Statement 18/12/2015 - 18/01/2016,Corporate Resources,SCREWFIX,15/01/2016,21.66,Other Expenditure - General,"Building Materials, Lumber Stores",GPC
Statement 18/12/2015 - 18/01/2016,Corporate Resources,SCREWFIX,15/01/2016,14.00,Other Expenditure - General,"Building Materials, Lumber Stores",GPC
Statement 18/12/2015 - 18/01/2016,Corporate Resources,SCREWFIX DIRECT LT,03/01/2016,69.25,Other Services - General,"Building Materials, Lumber Stores",GPC
Statement 18/12/2015 - 18/01/2016,Corporate Resources,Shell Ashby,21/12/2015,4.16,Petrol/Oil/Tyres/Spares - General,Service Stations (with or without Ancillary Servic,GPC
Statement 18/12/2015 - 18/01/2016,Corporate Resources,SLB SUPPLIES LTD,22/12/2015,8.75,Other Services - General,Pet Shops-Pet Food and Supplies,GPC
Statement 18/12/2015 - 18/01/2016,Corporate Resources,SLB SUPPLIES LTD,22/12/2015,30.00,Other Services - General,Pet Shops-Pet Food and Supplies,GPC
Statement 18/12/2015 - 18/01/2016,Corporate Resources,SLB SUPPLIES LTD,29/12/2015,24.00,Other Services - General,Pet Shops-Pet Food and Supplies,GPC
Statement 18/12/2015 - 18/01/2016,Corporate Resources,SODEXO-AIREDALE G,17/12/2015,4.86,Subsistence - General,Caterers,GPC
Statement 18/12/2015 - 18/01/2016,Corporate Resources,STAPLES UK,23/12/2015,31.80,Stationery - General,"Stationery, Office, and School Supply Stores",GPC
Statement 18/12/2015 - 18/01/2016,Corporate Resources,SYRIANA RESTAURANT,07/01/2016,233.35,Subsistence - General,"Eating Places, Restaurants",GPC
Statement 18/12/2015 - 18/01/2016,Corporate Resources,TAVISTOCK & PORTMAN NH,08/01/2016,140.00,Training Expenses - General,"Colleges, Universities, Professional Schools, and",GPC
Statement 18/12/2015 - 18/01/2016,Corporate Resources,TESCO STORES 2044,09/01/2016,15.29,Other Expenditure - General,"Grocery Stores, Supermarkets",GPC
Statement 18/12/2015 - 18/01/2016,Corporate Resources,TESCO STORES 2044,12/01/2016,14.54,Other Services - General,"Grocery Stores, Supermarkets",GPC
Statement 18/12/2015 - 18/01/2016,Corporate Resources,TESCO-STORES 6065,10/01/2016,1.00,Other Expenditure - General,"Grocery Stores, Supermarkets",GPC
Statement 18/12/2015 - 18/01/2016,Corporate Resources,THE ROYAL OAK,13/01/2016,180.00,Training Expenses - General,"Eating Places, Restaurants",GPC
Statement 18/12/2015 - 18/01/2016,Corporate Resources,THE STABLE,14/01/2016,12.00,Subsistence - General,"Eating Places, Restaurants",GPC
Statement 18/12/2015 - 18/01/2016,Corporate Resources,THE STABLE,14/01/2016,28.50,Subsistence - General,"Eating Places, Restaurants",GPC
Statement 18/12/2015 - 18/01/2016,Corporate Resources,TRAINLINE,11/01/2016,162.18,Casual/Essential - General,Passenger Railways,GPC
Statement 18/12/2015 - 18/01/2016,Corporate Resources,TRAINLINE,08/01/2016,79.46,Public Transport -  Staff - General,Passenger Railways,GPC
Statement 18/12/2015 - 18/01/2016,Corporate Resources,TRAINLINE,08/01/2016,44.37,Public Transport -  Staff - General,Passenger Railways,GPC
Statement 18/12/2015 - 18/01/2016,Corporate Resources,UPT-EAST MIDLANDS TRN-LB,12/01/2016,9.58,Public Transport -  Staff - General,Professional Services-Not Elsewhere Classified,GPC
Statement 18/12/2015 - 18/01/2016,Corporate Resources,UPT-EAST MIDLANDS TRN-LB,15/01/2016,11.50,Schools Agency staff - Teaching Staff,Professional Services-Not Elsewhere Classified,GPC
Statement 18/12/2015 - 18/01/2016,Corporate Resources,VALEROSO LOUNGE,05/01/2016,8.90,Subsistence - General,"Eating Places, Restaurants",GPC
Statement 18/12/2015 - 18/01/2016,Corporate Resources,VIRGINTRAINS.CO.UK,07/01/2016,138.00,Training Expenses - General,Passenger Railways,GPC
Statement 18/12/2015 - 18/01/2016,Corporate Resources,WEST COAST TRAINS,17/12/2015,8.50,Casual/Essential - General,Automobile Parking Lots and Garages,GPC
Statement 18/12/2015 - 18/01/2016,Corporate Resources,WEST COAST TRAINS,05/01/2016,82.70,Public Transport -  Staff - General,Passenger Railways,GPC
Statement 18/12/2015 - 18/01/2016,Corporate Resources,WICKES,13/01/2016,12.50,Other Expenditure - General,"Building Materials, Lumber Stores",GPC
Statement 18/12/2015 - 18/01/2016,Corporate Resources,WILKO RETAIL LIMIT,19/12/2015,8.67,Other Services - General,Household Appliance Stores,GPC
Statement 18/12/2015 - 18/01/2016,Corporate Resources,WM MORRISON 054,21/12/2015,11.00,Other Expenditure - General,"Grocery Stores, Supermarkets",GPC
Statement 18/12/2015 - 18/01/2016,Corporate Resources,WWW.CIPFA.ORG.UK/PFMCO,06/01/2016,60.00,Conference - General,Membership Organizations-Not Elsewhere Classified,GPC
Statement 18/12/2015 - 18/01/2016,Corporate Resources,WWW.CIPFA.ORG.UK/PFMCO,06/01/2016,-60.00,Conference - General,Membership Organizations-Not Elsewhere Classified,GPC
Statement 18/12/2015 - 18/01/2016,Corporate Resources,WWW.CIPFA.ORG.UK/PFMCO,21/12/2015,495.00,Training Expenses - General,Membership Organizations-Not Elsewhere Classified,GPC
Statement 18/12/2015 - 18/01/2016,Corporate Resources,WWW.CIPFA.ORG.UK/PFMCO,24/12/2015,95.00,Training Expenses - General,Membership Organizations-Not Elsewhere Classified,GPC
Statement 18/12/2015 - 18/01/2016,Corporate Resources,WWW.CIPS.ORG,12/01/2016,127.50,Training Expenses - General,Membership Organizations-Not Elsewhere Classified,GPC
Statement 18/12/2015 - 18/01/2016,Corporate Resources,WWW.CIPS.ORG,12/01/2016,127.50,Training Expenses - General,Membership Organizations-Not Elsewhere Classified,GPC
Statement 18/12/2015 - 18/01/2016,Corporate Resources,WWW.CIPS.ORG,12/01/2016,118.32,Training Expenses - General,Membership Organizations-Not Elsewhere Classified,GPC
Statement 18/12/2015 - 18/01/2016,Corporate Resources,WWW.CJSEVENTS.CO.UK,14/01/2016,123.60,Training Expenses - General,"Management, Consulting and Public Relations Servic",GPC
Statement 18/12/2015 - 18/01/2016,Corporate Resources,WWW.COMMIDEA.COM,05/01/2016,116.36,IT Equipment - General,Computer and Data Processing Services,GPC
Statement 18/12/2015 - 18/01/2016,Corporate Resources,WWW.DVLA.GOV.UK,15/01/2016,227.50,Road Licences - General,Government Services-Not Elsewhere Classified,GPC
Statement 18/12/2015 - 18/01/2016,Corporate Resources,WWW.ITGOVERNANCE.CO.UK,23/12/2015,995.00,Training Expenses - General,Miscellaneous Publishing and  Printing,GPC
Statement 18/12/2015 - 18/01/2016,Corporate Resources,WWW.LEICESTERSHIRECC.C,13/01/2016,25.00,Public Transport -  Staff - General,Government Services-Not Elsewhere Classified,GPC
Statement 18/12/2015 - 18/01/2016,Corporate Resources,WWW.LEICESTERSHIRECC.C,13/01/2016,25.00,Public Transport -  Staff - General,Government Services-Not Elsewhere Classified,GPC
Statement 18/12/2015 - 18/01/2016,Corporate Resources,WWW.LETSRECYCLE.COM,11/01/2016,134.43,Training Expenses - General,Advertising Services,GPC
Statement 18/12/2015 - 18/01/2016,Corporate Resources,WWW.LOCAL.GOV.UK,22/12/2015,234.00,Conference - General,Business Services-Not Elsewhere Classified,GPC
Statement 18/12/2015 - 18/01/2016,Corporate Resources,WWW.SAFELINCS.CO.UK,24/12/2015,824.00,Operational Equipment - General,Durable Goods Not Elsewhere Classified,GPC
Statement 18/12/2015 - 18/01/2016,Corporate Resources,WWW.SPRINGER.COM,12/01/2016,19.99,Training Expenses - General,Miscellaneous Publishing and  Printing,GPC
Statement 18/12/2015 - 18/01/2016,Corporate Resources,WWW.STAPLES.CO.UK,06/01/2016,34.76,Stationery - General,"Stationery, Office, and School Supply Stores",GPC
Statement 18/12/2015 - 18/01/2016,Corporate Resources,XC TRAINS LTD,08/01/2016,2.30,Public Transport -  Staff - General,Passenger Railways,GPC
Statement 18/12/2015 - 18/01/2016,E&T,Amazon Svcs Europe SAR,17/12/2015,35.32,Books - General,Book Stores,GPC
Statement 18/12/2015 - 18/01/2016,E&T,Amazon Svcs Europe SAR,11/01/2016,6.45,Stationery - General,Book Stores,GPC
Statement 18/12/2015 - 18/01/2016,E&T,Amazon UK Marketplace,22/12/2015,128.75,Other Equipment & Materials - General,Book Stores,GPC
Statement 18/12/2015 - 18/01/2016,E&T,Amazon UK Retail,06/01/2016,26.84,Other Equipment & Materials - General,Direct Marketers - Other,GPC
Statement 18/12/2015 - 18/01/2016,E&T,Amazon UK Retail,06/01/2016,58.93,Other Equipment & Materials - General,Direct Marketers - Other,GPC
Statement 18/12/2015 - 18/01/2016,E&T,CURRYS SUPERSTORE,14/01/2016,66.66,Other Equipment & Materials - General,"RADIO, TELEVISION, AND STEREO STORES (ELECTRONIC STORES)",GPC
Statement 18/12/2015 - 18/01/2016,E&T,EA HAZARDOUS WASTE-DOM,30/12/2015,18.00,Site Licences - General,Government Services-Not Elsewhere Classified,GPC
Statement 18/12/2015 - 18/01/2016,E&T,EASTMIDLANDSTRAINS,31/12/2015,128.60,Public Transport -  Staff - General,Passenger Railways,GPC
Statement 18/12/2015 - 18/01/2016,E&T,EASTMIDLANDSTRAINS,05/01/2016,51.80,Public Transport -  Staff - General,Passenger Railways,GPC
Statement 18/12/2015 - 18/01/2016,E&T,EASTMIDLANDSTRAINS,11/01/2016,14.00,Public Transport -  Staff - General,Passenger Railways,GPC
Statement 18/12/2015 - 18/01/2016,E&T,EASTMIDLANDSTRAINS,12/01/2016,157.50,Public Transport -  Staff - General,Passenger Railways,GPC
Statement 18/12/2015 - 18/01/2016,E&T,EASTMIDLANDSTRAINS,13/01/2016,157.50,Public Transport -  Staff - General,Passenger Railways,GPC
Statement 18/12/2015 - 18/01/2016,E&T,EASTMIDLANDSTRAINS,14/01/2016,77.90,Public Transport -  Staff - General,Passenger Railways,GPC
Statement 18/12/2015 - 18/01/2016,E&T,EASTMIDLANDSTRAINS,15/01/2016,461.50,Public Transport -  Staff - General,Passenger Railways,GPC
Statement 18/12/2015 - 18/01/2016,E&T,FIREPROTECT,12/01/2016,268.51,R & M of Buildings - General,Hardware Stores,GPC
Statement 18/12/2015 - 18/01/2016,E&T,ROADCRAFT SAFETY PRD LTD,15/01/2016,262.80,Other Equipment & Materials - General,Professional Services-Not Elsewhere Classified,GPC
Statement 18/12/2015 - 18/01/2016,E&T,TRAINLINE,01/01/2016,-157.50,Casual/Essential - General,Passenger Railways,GPC
Statement 18/12/2015 - 18/01/2016,E&T,TRAMLINK NOTTINGHAM LT,14/01/2016,7.00,Casual/Essential - General,Transportation Services-not elsewhere,GPC
Statement 18/12/2015 - 18/01/2016,E&T,WWW.DVLA.GOV.UK,18/12/2015,227.50,Other Expenditure - General,Government Services-Not Elsewhere Classified,GPC
Statement 18/12/2015 - 18/01/2016,E&T,WWW.DVLA.GOV.UK,07/01/2016,167.50,Road Licences - General,Government Services-Not Elsewhere Classified,GPC
Statement 18/12/2015 - 18/01/2016,E&T,WWW.DVLA.GOV.UK,07/01/2016,227.50,Road Licences - General,Government Services-Not Elsewhere Classified,GPC
Statement 18/12/2015 - 18/01/2016,Leicestershire Highways,Amazon UK Marketplace,14/01/2016,22.97,Books - General,Book Stores,GPC
Statement 18/12/2015 - 18/01/2016,Leicestershire Highways,Amazon UK Marketplace,02/01/2016,23.97,Materials - General,Miscellaneous and Specialty Retail Stores,GPC
Statement 18/12/2015 - 18/01/2016,Leicestershire Highways,Amazon UK Marketplace,07/01/2016,22.70,Materials - General,Miscellaneous and Specialty Retail Stores,GPC
Statement 18/12/2015 - 18/01/2016,Leicestershire Highways,Amazon UK Marketplace,14/01/2016,61.63,Materials - General,Miscellaneous and Specialty Retail Stores,GPC
Statement 18/12/2015 - 18/01/2016,Leicestershire Highways,Amazon UK Marketplace,14/01/2016,5.30,Materials - General,Miscellaneous and Specialty Retail Stores,GPC
Statement 18/12/2015 - 18/01/2016,Leicestershire Highways,Amazon UK Marketplace,14/01/2016,12.33,Materials - General,Miscellaneous and Specialty Retail Stores,GPC
Statement 18/12/2015 - 18/01/2016,Leicestershire Highways,Amazon UK Marketplace,15/01/2016,9.40,Materials - General,Miscellaneous and Specialty Retail Stores,GPC
Statement 18/12/2015 - 18/01/2016,Leicestershire Highways,Amazon UK Marketplace,15/01/2016,18.32,Materials - General,Miscellaneous and Specialty Retail Stores,GPC
Statement 18/12/2015 - 18/01/2016,Leicestershire Highways,Amazon UK Marketplace,15/01/2016,1.51,Materials - General,Miscellaneous and Specialty Retail Stores,GPC
Statement 18/12/2015 - 18/01/2016,Leicestershire Highways,Amazon UK Marketplace,16/01/2016,15.84,Materials - General,Miscellaneous and Specialty Retail Stores,GPC
Statement 18/12/2015 - 18/01/2016,Leicestershire Highways,Amazon UK Retail,14/01/2016,28.17,Other Expenditure - General,Direct Marketers - Other,GPC
Statement 18/12/2015 - 18/01/2016,Leicestershire Highways,Amazon UK Retail,15/01/2016,8.70,Other Expenditure - General,Direct Marketers - Other,GPC
Statement 18/12/2015 - 18/01/2016,Leicestershire Highways,DAY AND COLES AGRICULTURA,07/01/2016,62.90,Petrol/Oil/Tyres/Spares - General,Miscellaneous Automotive Dealers -  Not Elsewhere,GPC
Statement 18/12/2015 - 18/01/2016,Leicestershire Highways,STATIONERY OFFICE BOOK,06/01/2016,223.55,Other Expenditure - General,Catalog Merchants,GPC
Statement 18/12/2015 - 18/01/2016,Leicestershire Highways,TESCO STORES 2950,17/12/2015,30.00,Materials - General,"Grocery Stores, Supermarkets",GPC
Statement 18/12/2015 - 18/01/2016,Leicestershire Highways,TESCO STORES 2950,12/01/2016,30.00,Materials - General,"Grocery Stores, Supermarkets",GPC
Statement 18/12/2015 - 18/01/2016,Leicestershire Highways,WWW.DVLA.GOV.UK,07/01/2016,652.50,Road Licences - General,Government Services-Not Elsewhere Classified,GPC
Statement 18/12/2015 - 18/01/2016,Leicestershire Highways,WWW.DVLA.GOV.UK,07/01/2016,227.50,Road Licences - General,Government Services-Not Elsewhere Classified,GPC
Statement 18/12/2015 - 18/01/2016,Leicestershire Highways,WWW.DVLA.GOV.UK,07/01/2016,227.50,Road Licences - General,Government Services-Not Elsewhere Classified,GPC
Statement 18/12/2015 - 18/01/2016,Leicestershire Highways,WWW.DVLA.GOV.UK,07/01/2016,227.50,Road Licences - General,Government Services-Not Elsewhere Classified,GPC
Statement 18/12/2015 - 18/01/2016,Leicestershire Highways,WWW.DVLA.GOV.UK,07/01/2016,227.50,Road Licences - General,Government Services-Not Elsewhere Classified,GPC
Statement 18/12/2015 - 18/01/2016,Leicestershire Highways,WWW.DVLA.GOV.UK,07/01/2016,227.50,Road Licences - General,Government Services-Not Elsewhere Classified,GPC
Statement 18/12/2015 - 18/01/2016,Leicestershire Highways,WWW.DVLA.GOV.UK,07/01/2016,227.50,Road Licences - General,Government Services-Not Elsewhere Classified,GPC
Statement 18/12/2015 - 18/01/2016,Leicestershire Highways,WWW.DVLA.GOV.UK,07/01/2016,652.50,Road Licences - General,Government Services-Not Elsewhere Classified,GPC
Statement 18/12/2015 - 18/01/2016,Leicestershire Highways,WWW.DVLA.GOV.UK,07/01/2016,227.50,Road Licences - General,Government Services-Not Elsewhere Classified,GPC
Statement 18/12/2015 - 18/01/2016,Leicestershire Highways,WWW.DVLA.GOV.UK,07/01/2016,227.50,Road Licences - General,Government Services-Not Elsewhere Classified,GPC
Statement 18/12/2015 - 18/01/2016,Leicestershire Highways,WWW.DVLA.GOV.UK,07/01/2016,227.50,Road Licences - General,Government Services-Not Elsewhere Classified,GPC
Statement 18/12/2015 - 18/01/2016,Leicestershire Highways,WWW.DVLA.GOV.UK,07/01/2016,652.50,Road Licences - General,Government Services-Not Elsewhere Classified,GPC
Statement 18/12/2015 - 18/01/2016,Leicestershire Highways,WWW.DVLA.GOV.UK,07/01/2016,652.50,Road Licences - General,Government Services-Not Elsewhere Classified,GPC
Statement 18/12/2015 - 18/01/2016,Leicestershire Highways,WWW.DVLA.GOV.UK,07/01/2016,652.50,Road Licences - General,Government Services-Not Elsewhere Classified,GPC
Statement 18/12/2015 - 18/01/2016,Leicestershire Highways,WWW.DVLA.GOV.UK,07/01/2016,227.50,Road Licences - General,Government Services-Not Elsewhere Classified,GPC
Statement 18/12/2015 - 18/01/2016,Leicestershire Highways,WWW.DVLA.GOV.UK,11/01/2016,652.50,Road Licences - General,Government Services-Not Elsewhere Classified,GPC
Statement 18/12/2015 - 18/01/2016,Leicestershire Highways,WWW.DVLA.GOV.UK,11/01/2016,652.50,Road Licences - General,Government Services-Not Elsewhere Classified,GPC
Statement 18/12/2015 - 18/01/2016,Leicestershire Highways,WWW.IPAQREPAIR.CO.UK,14/01/2016,90.67,IT Equipment - Repairs,"Computer Maintenance, Repair, and Services Not Els",GPC
Statement 18/12/2015 - 18/01/2016,Leicestershire Highways,WWW.PROSOL.CO.UK,11/01/2016,118.80,Materials - General,"Automotive Parts, Accessories Stores",GPC
Statement 18/12/2015 - 18/01/2016,Public Health,Amazon UK Marketplace,15/01/2016,26.70,Other Equipment & Materials - General,Book Stores,GPC
Statement 18/12/2015 - 18/01/2016,Public Health,Amazon UK Marketplace,15/01/2016,20.94,Other Equipment & Materials - General,Book Stores,GPC
Statement 18/12/2015 - 18/01/2016,Public Health,Amazon UK Marketplace,15/01/2016,9.90,Other Equipment & Materials - General,Miscellaneous and Specialty Retail Stores,GPC
Statement 18/12/2015 - 18/01/2016,Public Health,Amazon UK Marketplace,17/01/2016,6.00,Other Equipment & Materials - General,Miscellaneous and Specialty Retail Stores,GPC
Statement 18/12/2015 - 18/01/2016,Public Health,Amazon UK Retail,02/01/2016,37.45,Training Expenses - General,Direct Marketers - Other,GPC
Statement 18/12/2015 - 18/01/2016,Public Health,Amazon UK Retail,12/01/2016,-11.92,Training Expenses - General,Direct Marketers - Other,GPC
Statement 18/12/2015 - 18/01/2016,Public Health,CENTERPLATE UK LTD,14/01/2016,76.00,Contract Catering - General,Caterers,GPC
Statement 18/12/2015 - 18/01/2016,Public Health,CHARNWOOD BOROUGH COUNCI,13/01/2016,2.20,Subsistence - General,Automobile Parking Lots and Garages,GPC
Statement 18/12/2015 - 18/01/2016,Public Health,FACEBOOK 4GR9J8WW32,10/01/2016,40.06,Advertising - General,Advertising Services,GPC
Statement 18/12/2015 - 18/01/2016,Public Health,FACEBOOK KD6TB8AX32,31/12/2015,4.34,Advertising - General,Advertising Services,GPC
Statement 18/12/2015 - 18/01/2016,Public Health,LOVE2SHOP.CO.UK,11/01/2016,100.20,Other Equipment & Materials - General,"Civic, Social, and Fraternal Associations",GPC
Statement 18/12/2015 - 18/01/2016,Public Health,RUTLAND COUNTY COU,07/01/2016,408.00,Casual/Essential - General,"Management, Consulting and Public Relations Servic",GPC
Statement 18/12/2015 - 18/01/2016,Public Health,SPORTSDIRECT.COM,07/01/2016,27.07,Other Equipment & Materials - General,Sporting Goods Stores,GPC
Statement 18/12/2015 - 18/01/2016,Public Health,TRAINLINE,04/01/2016,164.12,Public Transport -  Staff - General,Passenger Railways,GPC
Statement 18/12/2015 - 18/01/2016,Public Health,WWW.COVENTRY.GOV.UK,14/01/2016,30.00,Training Expenses - General,RECREATION SERVICES--NOT ELSEWHERE CLASSIFIED,GPC
"**Amounts stated are net of VAT, except where VAT has not been recovered.",,,,,,,
